Workbook

Sheet New data sheet (hidden)
D1: This sheet contains the data, as reported in the tables on worksheets 1-12, reformatted for presentation on the Dashboard.
D4: Raw data
D6: Category | E6: Year | F6: Powerlink | G6: Transgrid | H6: AusNet (T) | I6: ElectraNet | J6: TasNetworks (T) | K6: Transmission total | L6: =D6&E6 -> CategoryYear
D7: Actual Revenue | E7: 2006 | F7: 524.43109 | G7: 442.1475987 | H7: 457.0020524 | I7: 204.681999 | J7: 161.5377689 | K7: 1789.800509 | L7: =D7&E7 -> Actual Revenue2006
D8: Actual Revenue | E8: 2007 | F8: 556.8111823 | G8: 428.8681556 | H8: 501.4937129 | I8: 225.0386244 | J8: 138.9673597 | K8: 1851.179035 | L8: =D8&E8 -> Actual Revenue2007
D9: Actual Revenue | E9: 2008 | F9: 602.3278872 | G9: 441.2820922 | H9: 509.0296028 | I9: 231.9379345 | J9: 151.8086693 | K9: 1936.386186 | L9: Actual Revenue2008
D10: Actual Revenue | E10: 2009 | F10: 627.9669953 | G10: 542.3693151 | H10: 479.7462869 | I10: 259.5949043 | J10: 163.3380054 | K10: 2073.015507 | L10: Actual Revenue2009
D11: Actual Revenue | E11: 2010 | F11: 707.3585278 | G11: 660.5205699 | H11: 570.7836335 | I11: 251.1298707 | J11: 192.099811 | K11: 2381.892413 | L11: Actual Revenue2010
D12: Actual Revenue | E12: 2011 | F12: 804.4757333 | G12: 746.676375 | H12: 569.3503562 | I12: 290.4963712 | J12: 229.0261526 | K12: 2640.024988 | L12: Actual Revenue2011
D13: Actual Revenue | E13: 2012 | F13: 890.0368792 | G13: 768.8280514 | H13: 599.0234293 | I13: 335.6470412 | J13: 240.3683675 | K13: 2833.903769 | L13: Actual Revenue2012
D14: Actual Revenue | E14: 2013 | F14: 879.9657962 | G14: 804.717354 | H14: 674.1866955 | I14: 347.4968625 | J14: 237.8515483 | K14: 2944.218257 | L14: Actual Revenue2013
D15: Actual Revenue | E15: 2014 | F15: 904.0144297 | G15: 753.593123 | H15: 593.5349058 | I15: 299.2373219 | J15: 233.2880966 | K15: 2783.667877 | L15: Actual Revenue2014
D16: Actual Revenue | E16: 2015 | F16: 884.1102281 | G16: 765.2518136 | H16: 599.8818535 | I16: 310.7451129 | J16: 200.3311463 | K16: 2760.320154 | L16: Actual Revenue2015
D17: Actual Revenue | E17: 2016 | F17: 989.8715563 | G17: 750.9165505 | H17: 601.1279399 | I17: 298.0375797 | J17: 183.637845 | K17: 2823.591472 | L17: Actual Revenue2016
D18: Actual Revenue | E18: 2017 | F18: 1104.878974 | G18: 652.0903712 | H18: 561.5673047 | I18: 278.8006974 | J18: 168.9569928 | K18: 2766.29434 | L18: Actual Revenue2017
D19: Actual Revenue | E19: 2018 | F19: 733.0270716 | G19: 605.5502101 | H19: 535.9376557 | I19: 267.5365678 | J19: 165.5776928 | K19: 2307.629198 | L19: Actual Revenue2018
D20: Actual Revenue | E20: 2019 | F20: 676.4057254 | G20: 535.9581187 | H20: 517.1008227 | I20: 264.2032284 | J20: 154.1862098 | K20: 2147.854105 | L20: Actual Revenue2019
D21: Budgeted revenue | E21: 2006 | L21: Budgeted revenue2006
D22: Budgeted revenue | E22: 2007 | L22: Budgeted revenue2007
D23: Budgeted revenue | E23: 2008 | L23: Budgeted revenue2008
D24: Budgeted revenue | E24: 2009 | L24: Budgeted revenue2009
D25: Budgeted revenue | E25: 2010 | L25: Budgeted revenue2010
D26: Budgeted revenue | E26: 2011 | L26: Budgeted revenue2011
D27: Budgeted revenue | E27: 2012 | L27: Budgeted revenue2012
D28: Budgeted revenue | E28: 2013 | L28: Budgeted revenue2013
D29: Budgeted revenue | E29: 2014 | L29: Budgeted revenue2014
D30: Budgeted revenue | E30: 2015 | F30: 895.9824287 | G30: 857.9983346 | H30: 602.0196791 | I30: 317.3857197 | J30: 179.4626931 | K30: 2852.848855 | L30: Budgeted revenue2015
D31: Budgeted revenue | E31: 2016 | F31: 1014.798343 | G31: 845.3492945 | H31: 601.2912951 | I31: 304.6031987 | J31: 162.7697037 | K31: 2928.811835 | L31: Budgeted revenue2016
D32: Budgeted revenue | E32: 2017 | F32: 1113.358619 | G32: 760.4676512 | H32: 573.6171046 | I32: 285.9172423 | J32: 160.7835452 | K32: 2894.144163 | L32: Budgeted revenue2017
D33: Budgeted revenue | E33: 2018 | F33: 740.6518908 | G33: 696.7028311 | H33: 540.1349963 | I33: 274.3044137 | J33: 152.3900088 | K33: 2404.184141 | L33: Budgeted revenue2018
D34: Budgeted revenue | E34: 2019 | F34: 679.1994911 | G34: 556.3888705 | H34: 518.5886258 | I34: 271.0122798 | J34: 153.5997629 | K34: 2178.78903 | L34: Budgeted revenue2019
D35: Actual Closing RAB | E35: 2006 | F35: 4077.615594 | G35: 4382.815653 | H35: 2597.919508 | I35: 1395.606597 | J35: 1000.762359 | K35: 13454.71971 | L35: Actual Closing RAB2006
D36: Actual Closing RAB | E36: 2007 | F36: 4967.110642 | G36: 4502.606878 | H36: 2586.459548 | I36: 1433.153393 | J36: 1075.197708 | K36: 14564.52817 | L36: Actual Closing RAB2007
D37: Actual Closing RAB | E37: 2008 | F37: 5647.778713 | G37: 4748.3165 | H37: 2813.888655 | I37: 1665.490021 | J37: 1081.130926 | K37: 15956.60481 | L37: Actual Closing RAB2008
D38: Actual Closing RAB | E38: 2009 | F38: 6215.607201 | G38: 5232.247334 | H38: 2799.34031 | I38: 1723.070364 | J38: 1180.365325 | K38: 17150.63053 | L38: Actual Closing RAB2009
D39: Actual Closing RAB | E39: 2010 | F39: 6539.169345 | G39: 5521.078986 | H39: 2801.678946 | I39: 1798.638573 | J39: 1288.283544 | K39: 17948.84939 | L39: Actual Closing RAB2010
D40: Actual Closing RAB | E40: 2011 | F40: 6807.08538 | G40: 5748.045079 | H40: 2795.141093 | I40: 2009.03941 | J40: 1366.043661 | K40: 18725.35462 | L40: Actual Closing RAB2011
D41: Actual Closing RAB | E41: 2012 | F41: 7375.960858 | G41: 5943.974484 | H41: 2810.228575 | I41: 2141.152566 | J41: 1459.450897 | K41: 19730.76738 | L41: Actual Closing RAB2012
D42: Actual Closing RAB | E42: 2013 | F42: 7665.005867 | G42: 6283.663396 | H42: 2864.290654 | I42: 2316.274062 | J42: 1496.100583 | K42: 20625.33456 | L42: Actual Closing RAB2013
D43: Actual Closing RAB | E43: 2014 | F43: 7774.227145 | G43: 6615.006585 | H43: 3138.758995 | I43: 2379.007689 | J43: 1535.450731 | K43: 21442.45114 | L43: Actual Closing RAB2014
D44: Actual Closing RAB | E44: 2015 | F44: 7676.138952 | G44: 6626.158302 | H44: 3144.848678 | I44: 2406.326933 | J44: 1506.252048 | K44: 21359.72491 | L44: Actual Closing RAB2015
D45: Actual Closing RAB | E45: 2016 | F45: 7532.097408 | G45: 6615.400442 | H45: 3137.040405 | I45: 2475.940303 | J45: 1472.834455 | K45: 21233.31301 | L45: Actual Closing RAB2016
D46: Actual Closing RAB | E46: 2017 | F46: 7332.907227 | G46: 6520.271138 | H46: 3289.070146 | I46: 2529.200713 | J46: 1463.493416 | K46: 21134.94264 | L46: Actual Closing RAB2017
D47: Actual Closing RAB | E47: 2018 | F47: 7240.6761 | G47: 6484.895633 | H47: 3304.112591 | I47: 2605.832373 | J47: 1455.601488 | K47: 21091.11818 | L47: Actual Closing RAB2018
D48: Actual Closing RAB | E48: 2019 | F48: 7129.226181 | G48: 6452.014732 | H48: 3294.764821 | I48: 2616.227196 | J48: 1454.735098 | K48: 20946.96803 | L48: Actual Closing RAB2019
D49: Forecast Closing RAB | E49: 2006 | F49: 4065.12391 | G49: 4484.936613 | H49: 2708.750874 | I49: 1446.467745 | J49: 998.878568 | K49: 13704.15771 | L49: Forecast Closing RAB2006
D50: Forecast Closing RAB | E50: 2007 | F50: 4000.914139 | G50: 4637.3582 | H50: 2694.921076 | I50: 1466.122192 | J50: 1073.645444 | K50: 13872.96105 | L50: Forecast Closing RAB2007
D51: Forecast Closing RAB | E51: 2008 | F51: 5726.44341 | G51: 4972.927049 | H51: 2678.672646 | I51: 1437.944143 | J51: 1079.710149 | K51: 15895.6974 | L51: Forecast Closing RAB2008
D52: Forecast Closing RAB | E52: 2009 | F52: 6372.003563 | G52: 5210.106545 | H52: 2831.948655 | I52: 1769.753924 | J52: 1075.724004 | K52: 17259.53669 | L52: Forecast Closing RAB2009
D53: Forecast Closing RAB | E53: 2010 | F53: 6709.87327 | G53: 5698.299751 | H53: 2835.771262 | I53: 1935.778307 | J53: 1324.286607 | K53: 18504.0092 | L53: Forecast Closing RAB2010
D54: Forecast Closing RAB | E54: 2011 | F54: 7093.899128 | G54: 6052.531456 | H54: 2861.555966 | I54: 2160.009539 | J54: 1461.554748 | K54: 19629.55084 | L54: Forecast Closing RAB2011
D55: Forecast Closing RAB | E55: 2012 | F55: 7373.54117 | G55: 6545.20494 | H55: 2892.184046 | I55: 2311.946202 | J55: 1520.54877 | K55: 20643.42513 | L55: Forecast Closing RAB2012
D56: Forecast Closing RAB | E56: 2013 | F56: 7935.332728 | G56: 6959.621616 | H56: 2896.00182 | I56: 2330.492734 | J56: 1579.767932 | K56: 21701.21683 | L56: Forecast Closing RAB2013
D57: Forecast Closing RAB | E57: 2014 | F57: 8329.16903 | G57: 7189.629531 | H57: 2944.529545 | I57: 2470.386935 | J57: 1634.210132 | K57: 22567.92517 | L57: Forecast Closing RAB2014
D58: Forecast Closing RAB | E58: 2015 | F58: 8501.071827 | G58: 6637.388138 | H58: 3151.92345 | I58: 2549.271453 | J58: 1535.344782 | K58: 22374.99965 | L58: Forecast Closing RAB2015
D59: Forecast Closing RAB | E59: 2016 | F59: 8704.313154 | G59: 6700.688214 | H59: 3195.422086 | I59: 2651.51838 | J59: 1547.388077 | K59: 22799.32991 | L59: Forecast Closing RAB2016
D60: Forecast Closing RAB | E60: 2017 | F60: 8963.750379 | G60: 6673.177417 | H60: 3233.175523 | I60: 2684.920196 | J60: 1543.233472 | K60: 23098.25699 | L60: Forecast Closing RAB2017
D61: Forecast Closing RAB | E61: 2018 | F61: 7240.6761 | G61: 6647.219007 | H61: 3304.112591 | I61: 2642.941036 | J61: 1530.750518 | K61: 21365.69925 | L61: Forecast Closing RAB2018
D62: Forecast Closing RAB | E62: 2019 | F62: 7129.226181 | G62: 6452.014732 | H62: 3294.764821 | I62: 2616.227196 | J62: 1506.359756 | K62: 20998.59269 | L62: Forecast Closing RAB2019
D63: Actual annual capex | E63: 2006 | F63: 367.8080432 | G63: 213.6884515 | H63: 141.0548764 | I63: 93.74908312 | J63: 97.1873181 | K63: 913.4877722 | L63: Actual annual capex2006
D64: Actual annual capex | E64: 2007 | F64: 329.2743953 | G64: 290.4696335 | H64: 144.0626702 | I64: 108.0006411 | J64: 135.3977847 | K64: 1007.205125 | L64: Actual annual capex2007
D65: Actual annual capex | E65: 2008 | F65: 859.3500549 | G65: 415.594183 | H65: 142.0447423 | I65: 217.5500419 | J65: 80.70957586 | K65: 1715.248598 | L65: Actual annual capex2008
D66: Actual annual capex | E66: 2009 | F66: 778.7910246 | G66: 714.3654322 | H66: 115.0658656 | I66: 121.0957024 | J66: 84.0452425 | K66: 1813.363267 | L66: Actual annual capex2009
D67: Actual annual capex | E67: 2010 | F67: 542.3347441 | G67: 494.8963958 | H67: 134.6599108 | I67: 142.4119716 | J67: 162.1638314 | K67: 1476.466854 | L67: Actual annual capex2010
D68: Actual annual capex | E68: 2011 | F68: 502.1146848 | G68: 429.5877809 | H68: 130.2357356 | I68: 275.3053676 | J68: 136.9842085 | K68: 1474.227777 | L68: Actual annual capex2011
D69: Actual annual capex | E69: 2012 | F69: 729.4077938 | G69: 405.7700168 | H69: 152.8173179 | I69: 200.9552889 | J69: 145.2677017 | K69: 1634.218119 | L69: Actual annual capex2012
D70: Actual annual capex | E70: 2013 | F70: 507.091497 | G70: 548.7588744 | H70: 195.1836495 | I70: 253.891002 | J70: 96.55870876 | K70: 1601.483732 | L70: Actual annual capex2013
D71: Actual annual capex | E71: 2014 | F71: 348.9134532 | G71: 528.5642256 | H71: 160.5651078 | I71: 145.0830316 | J71: 85.02401745 | K71: 1268.149836 | L71: Actual annual capex2014
D72: Actual annual capex | E72: 2015 | F72: 172.2942203 | G72: 272.2840381 | H72: 165.252678 | I72: 122.6576779 | J72: 27.29182798 | K72: 759.7804423 | L72: =D72&E72 -> Actual annual capex2015
D73: Actual annual capex | E73: 2016 | F73: 141.1664299 | G73: 262.4549418 | H73: 148.6737949 | I73: 177.3531515 | J73: 26.29805767 | K73: 755.9463758 | L73: Actual annual capex2016
D74: Actual annual capex | E74: 2017 | F74: 180.0710345 | G74: 193.0482174 | H74: 183.1132336 | I74: 157.5286375 | J74: 53.26781897 | K74: 767.028942 | L74: Actual annual capex2017
D75: Actual annual capex | E75: 2018 | F75: 153.5356785 | G75: 233.7397762 | H75: 137.4810992 | I75: 179.5232292 | J75: 53.62937746 | K75: 757.9091605 | L75: Actual annual capex2018
D76: Actual annual capex | E76: 2019 | F76: 169.2739498 | G76: 211.0976065 | H76: 145.8241556 | I76: 155.2554517 | J76: 60.82476706 | K76: 742.2759308 | L76: Actual annual capex2019
D77: Forecast annual capex | E77: 2006 | F77: 276.1022522 | G77: 259.3870511 | H77: 76.76869881 | I77: 118.4272317 | J77: 71.85825471 | K77: 802.5434885 | L77: Forecast annual capex2006
D78: Forecast annual capex | E78: 2007 | F78: 123.6591478 | G78: 312.7221623 | H78: 104.0915148 | I78: 103.3338162 | J78: 118.603466 | K78: 762.410107 | L78: Forecast annual capex2007
D79: Forecast annual capex | E79: 2008 | F79: 937.041176 | G79: 494.0488987 | H79: 105.4142592 | I79: 68.49021718 | J79: 56.0185319 | K79: 1661.013083 | L79: Forecast annual capex2008
D80: Forecast annual capex | E80: 2009 | F80: 854.7923609 | G80: 413.6793371 | H80: 149.5869745 | I80: 164.9359149 | J80: 46.74649903 | K80: 1629.741086 | L80: Forecast annual capex2009
D81: Forecast annual capex | E81: 2010 | F81: 566.5029188 | G81: 666.8131402 | H81: 143.1896355 | I81: 225.9879835 | J81: 197.1517871 | K81: 1799.645465 | L81: Forecast annual capex2010
D82: Forecast annual capex | E82: 2011 | F82: 625.4060055 | G82: 568.3653233 | H82: 169.4511954 | I82: 288.7100072 | J82: 194.8963648 | K82: 1846.828896 | L82: Forecast annual capex2011
D83: Forecast annual capex | E83: 2012 | F83: 532.8982186 | G83: 698.8077126 | H83: 179.0065101 | I83: 222.8305058 | J83: 116.3575402 | K83: 1749.900487 | L83: Forecast annual capex2012
D84: Forecast annual capex | E84: 2013 | F84: 770.5457149 | G84: 642.2544884 | H84: 157.0367323 | I84: 99.10636717 | J84: 122.3281947 | K84: 1791.271497 | L84: Forecast annual capex2013
D85: Forecast annual capex | E85: 2014 | F85: 636.240245 | G85: 482.7247075 | H85: 191.9153557 | I85: 234.5944317 | J85: 122.0386649 | K85: 1667.513405 | L85: Forecast annual capex2014
D86: Forecast annual capex | E86: 2015 | F86: 453.1182624 | G86: 277.9414158 | H86: 164.3210711 | I86: 169.9353516 | J86: 55.12558557 | K86: 1120.441686 | L86: Forecast annual capex2015
D87: Forecast annual capex | E87: 2016 | F87: 503.7879566 | G87: 331.6364686 | H87: 198.3681161 | I87: 206.2161089 | J87: 70.18024112 | K87: 1310.188891 | L87: Forecast annual capex2016
D88: Forecast annual capex | E88: 2017 | F88: 570.4341803 | G88: 256.2128283 | H88: 197.3202742 | I88: 148.0144848 | J88: 57.45020498 | K88: 1229.431973 | L88: Forecast annual capex2017
D89: Forecast annual capex | E89: 2018 | F89: 170.5998491 | G89: 239.2879836 | H89: 187.2299745 | I89: 75.59549071 | J89: 48.48147466 | K89: 721.1947726 | L89: Forecast annual capex2018
D90: Forecast annual capex | E90: 2019 | F90: 171.2919456 | G90: 221.064134 | H90: 163.4945299 | I90: 115.1224843 | J90: 37.02963811 | K90: 708.002732 | L90: Forecast annual capex2019
D91: Actual annual opex | E91: 2006 | F91: 163.4279308 | G91: 166.3045919 | H91: 85.49174936 | I91: 66.62940367 | J91: 48.79909265 | K91: 530.6527684 | L91: Actual annual opex2006
D92: Actual annual opex | E92: 2007 | F92: 171.8219661 | G92: 165.0832559 | H92: 83.05200449 | I92: 70.89826343 | J92: 50.50351853 | K92: 541.3590084 | L92: Actual annual opex2007
D93: Actual annual opex | E93: 2008 | F93: 186.8203262 | G93: 155.36892 | H93: 75.92683516 | I93: 64.09237275 | J93: 60.13602135 | K93: 542.3444755 | L93: Actual annual opex2008
D94: Actual annual opex | E94: 2009 | F94: 179.1139079 | G94: 155.895918 | H94: 97.85307831 | I94: 68.79816221 | J94: 58.57416898 | K94: 560.2352354 | L94: Actual annual opex2009
D95: Actual annual opex | E95: 2010 | F95: 185.5684452 | G95: 175.1921671 | H95: 98.13202975 | I95: 70.31976645 | J95: 58.43755619 | K95: 587.6499647 | L95: Actual annual opex2010
D96: Actual annual opex | E96: 2011 | F96: 178.9362036 | G96: 163.4188936 | H96: 89.90469968 | I96: 76.25785167 | J96: 55.22528768 | K96: 563.7429362 | L96: Actual annual opex2011
D97: Actual annual opex | E97: 2012 | F97: 185.4661861 | G97: 176.1048036 | H97: 84.64755567 | I97: 83.92817579 | J97: 54.32509602 | K97: 584.4718173 | L97: Actual annual opex2012
D98: Actual annual opex | E98: 2013 | F98: 189.6792582 | G98: 162.3005951 | H98: 86.30047889 | I98: 79.91735663 | J98: 51.02919391 | K98: 569.2268828 | L98: Actual annual opex2013
D99: Actual annual opex | E99: 2014 | F99: 199.7151405 | G99: 194.0051113 | H99: 91.52263312 | I99: 81.81210056 | J99: 50.36635047 | K99: 617.421336 | L99: Actual annual opex2014
D100: Actual annual opex | E100: 2015 | F100: 228.2278419 | G100: 181.6043467 | H100: 91.32918209 | I100: 85.99188318 | J100: 37.46514618 | K100: 624.6184001 | L100: Actual annual opex2015
D101: Actual annual opex | E101: 2016 | F101: 232.0794041 | G101: 179.9494229 | H101: 94.64622821 | I101: 90.73828487 | J101: 39.91347242 | K101: 637.3268125 | L101: Actual annual opex2016
D102: Actual annual opex | E102: 2017 | F102: 237.1758448 | G102: 178.0161441 | H102: 91.51425261 | I102: 93.95582769 | J102: 33.4871499 | K102: 634.149219 | L102: Actual annual opex2017
D103: Actual annual opex | E103: 2018 | F103: 192.7756964 | G103: 157.7811979 | H103: 84.10610753 | I103: 95.68539826 | J103: 29.77201729 | K103: 560.1204174 | L103: Actual annual opex2018
D104: Actual annual opex | E104: 2019 | F104: 201.1375615 | G104: 155.8195226 | H104: 87.72513716 | I104: 94.17144411 | J104: 31.39166034 | K104: 570.2453257 | L104: Actual annual opex2019
D105: Forecast annual opex | E105: 2006 | F105: 124.8281784 | G105: 166.7019934 | H105: 106.0807557 | I105: 71.14134925 | J105: 44.99801222 | K105: 513.7502889 | L105: Forecast annual opex2006
D106: Forecast annual opex | E106: 2007 | F106: 124.8330254 | G106: 166.1725717 | H106: 106.0807557 | I106: 71.14134925 | J106: 43.32680115 | K106: 511.5545032 | L106: Forecast annual opex2007
D107: Forecast annual opex | E107: 2008 | F107: 185.1979042 | G107: 165.7461727 | H107: 106.0807557 | I107: 71.14134925 | J107: 39.68121814 | K107: 567.8474 | L107: Forecast annual opex2008
D108: Forecast annual opex | E108: 2009 | F108: 186.0192818 | G108: 165.4857545 | H108: 105.2987187 | I108: 70.88969147 | J108: 39.55617603 | K108: 567.2496225 | L108: Forecast annual opex2009
D109: Forecast annual opex | E109: 2010 | F109: 199.9000098 | G109: 196.296592 | H109: 104.4706034 | I109: 73.11186147 | J109: 61.59868385 | K109: 635.3777505 | L109: Forecast annual opex2010
D110: Forecast annual opex | E110: 2011 | F110: 191.1147709 | G110: 189.4350527 | H110: 104.4433891 | I110: 75.6411648 | J110: 62.46319057 | K110: 623.0975681 | L110: Forecast annual opex2011
D111: Forecast annual opex | E111: 2012 | F111: 196.8394764 | G111: 194.2665479 | H111: 103.1638977 | I111: 79.23916914 | J111: 61.99390332 | K111: 635.5029944 | L111: Forecast annual opex2012
D112: Forecast annual opex | E112: 2013 | F112: 203.3318975 | G112: 205.2750205 | H112: 102.6071942 | I112: 82.24869333 | J112: 64.92102267 | K112: 658.3838283 | L112: Forecast annual opex2013
D113: Forecast annual opex | E113: 2014 | F113: 211.065547 | G113: 207.347877 | H113: 101.2161939 | I113: 89.31066973 | J113: 64.52945397 | K113: 673.4697417 | L113: Forecast annual opex2014
D114: Forecast annual opex | E114: 2015 | F114: 216.437169 | G114: 185.2252333 | H114: 91.90894536 | I114: 92.70306197 | J114: 47.91241794 | K114: 634.1868276 | L114: Forecast annual opex2015
D115: Forecast annual opex | E115: 2016 | F115: 224.5416114 | G115: 183.9694508 | H115: 94.25728333 | I115: 94.38725549 | J115: 47.25847058 | K115: 644.4140716 | L115: Forecast annual opex2016
D116: Forecast annual opex | E116: 2017 | F116: 231.0505953 | G116: 188.8928419 | H116: 95.04158821 | I116: 99.46388359 | J116: 47.51338239 | K116: 661.9622914 | L116: Forecast annual opex2017
D117: Forecast annual opex | E117: 2018 | F117: 204.2332943 | G117: 181.7983001 | H117: 95.35689945 | I117: 99.85236406 | J117: 47.76069206 | K117: 629.0015499 | L117: Forecast annual opex2018
D118: Forecast annual opex | E118: 2019 | F118: 203.3435447 | G118: 178.6913806 | H118: 95.86326783 | I118: 91.98829149 | J118: 47.2322877 | K118: 617.1187722 | L118: Forecast annual opex2019
D119: Loss of supply events | E119: 2006 | F119: 2 | G119: 2 | H119: 5 | I119: 4 | J119: 16 | K119: 29 | L119: Loss of supply events2006
D120: Loss of supply events | E120: 2007 | F120: 2 | G120: 5 | H120: 2 | I120: 1 | J120: 10 | K120: 20 | L120: Loss of supply events2007
D121: Loss of supply events | E121: 2008 | F121: 2 | G121: 2 | H121: 1 | I121: 4 | J121: 6 | K121: 15 | L121: Loss of supply events2008
D122: Loss of supply events | E122: 2009 | F122: 2 | G122: 3 | H122: 6 | I122: 4 | J122: 8 | K122: 23 | L122: Loss of supply events2009
D123: Loss of supply events | E123: 2010 | F123: 0 | G123: 3 | H123: 1 | I123: 12 | J123: 9 | K123: 25 | L123: Loss of supply events2010
D124: Loss of supply events | E124: 2011 | F124: 4 | G124: 3 | H124: 0 | I124: 7 | J124: 11 | K124: 25 | L124: Loss of supply events2011
D125: Loss of supply events | E125: 2012 | F125: 1 | G125: 3 | H125: 2 | I125: 7 | J125: 10 | K125: 23 | L125: Loss of supply events2012
D126: Loss of supply events | E126: 2013 | F126: 0 | G126: 3 | H126: 5 | I126: 5 | J126: 10 | K126: 23 | L126: Loss of supply events2013
D127: Loss of supply events | E127: 2014 | F127: 3 | G127: 4 | H127: 1 | I127: 4 | J127: 4 | K127: 16 | L127: Loss of supply events2014
D128: Loss of supply events | E128: 2015 | F128: 1 | G128: 4 | H128: 2 | I128: 1 | J128: 3 | K128: 11 | L128: Loss of supply events2015
D129: Loss of supply events | E129: 2016 | F129: 0 | G129: 2 | H129: 3 | I129: 5 | J129: 1 | K129: 11 | L129: Loss of supply events2016
D130: Loss of supply events | E130: 2017 | F130: 3 | G130: 1 | H130: 0 | I130: 4 | J130: 4 | K130: 12 | L130: Loss of supply events2017
D131: Loss of supply events | E131: 2018 | F131: 1 | G131: 1 | H131: 0 | I131: 3 | J131: 2 | K131: 7 | L131: Loss of supply events2018
D132: Average outage duration | E132: 2006 | F132: 39.03476969 | G132: 64.84 | H132: 61.9 | I132: 88.46 | J132: 53.84615 | L132: Average outage duration2006
D133: Average outage duration | E133: 2007 | F133: 1249.943388 | G133: 125.4 | H133: 27.6 | I133: 269.94 | J133: 142.7619 | L133: Average outage duration2007
D134: Average outage duration | E134: 2008 | F134: 35.28963807 | G134: 34.28 | H134: 71.5 | I134: 200.2 | J134: 112.9 | L134: Average outage duration2008
D135: Average outage duration | E135: 2009 | F135: 62.27619752 | G135: 84.96 | H135: 103.1 | I135: 161.27 | J135: 67.15789 | L135: Average outage duration2009
D136: Average outage duration | E136: 2010 | F136: 16.62000159 | G136: 225.83 | H136: 92.5 | I136: 126.85 | J136: 127.7692 | L136: =D136&E136 -> Average outage duration2010
D137: Average outage duration | E137: 2011 | F137: 86.76942158 | G137: 137.11 | H137: 4 | I137: 242.28 | J137: 90.86667 | L137: Average outage duration2011
D138: Average outage duration | E138: 2012 | F138: 26.08666667 | G138: 94.23 | H138: 230 | I138: 124.76 | J138: 110.8846 | L138: Average outage duration2012
D139: Average outage duration | E139: 2013 | F139: 5.621428571 | G139: 180.32 | H139: 19.9 | I139: 154.17 | J139: 160.9412 | L139: Average outage duration2013
D140: Average outage duration | E140: 2014 | F140: 115.971 | G140: 71.138 | H140: 24 | I140: 130.71 | J140: 201 | L140: Average outage duration2014
D141: Average outage duration | E141: 2015 | F141: 236.2286666 | G141: 63.545 | H141: 97.5 | I141: 147 | J141: 74 | L141: Average outage duration2015
D142: Average outage duration | E142: 2016 | F142: 30.06 | G142: 169.1775079 | H142: 39.83333333 | I142: 250.57 | J142: 15 | L142: Average outage duration2016
D143: Average outage duration | E143: 2017 | F143: 27.45 | G143: 35.64 | H143: 19 | I143: 97 | J143: 410 | L143: Average outage duration2017
D144: Average outage duration | E144: 2018 | F144: 36.23818182 | G144: 58.20000015 | H144: 24.5 | I144: 463 | J144: 46 | L144: Average outage duration2018
D145: Market impact indicator | E145: 2006 | F145: 0.03737633181 | G145: 0.0258847032 | H145: 0.01152968037 | I145: 0.2700247336 | J145: 0.002949010654 | L145: Market impact indicator2006
D146: Market impact indicator | E146: 2007 | F146: 0.02527587519 | G146: 0.03258181126 | H146: 0.02546613394 | I146: 0.1040239726 | J146: 0.05666856925 | L146: Market impact indicator2007
D147: Market impact indicator | E147: 2008 | F147: 0.01248097412 | G147: 0.02813926941 | H147: 0.03142123288 | I147: 0.05277777778 | J147: 0.003196347032 | L147: Market impact indicator2008
D148: Market impact indicator | E148: 2009 | F148: 0.009874429224 | G148: 0.02398211568 | H148: 0.01442161339 | I148: 0.03537861492 | J148: 0.009912480974 | L148: Market impact indicator2009
D149: Market impact indicator | E149: 2010 | F149: 0.01483066971 | G149: 0.007420091324 | H149: 0.02091894977 | I149: 0.02148972603 | J149: 0.03777587519 | L149: Market impact indicator2010
D150: Market impact indicator | E150: 2011 | F150: 0.003177321157 | G150: 0.008295281583 | H150: 0.03160197869 | I150: 0.01685692542 | J150: 0.006934931507 | L150: Market impact indicator2011
D151: Market impact indicator | E151: 2012 | F151: 0.002235540335 | G151: 0.007011035008 | H151: 0.02480974125 | I151: 0.05065639269 | J151: 0.01337519026 | L151: Market impact indicator2012
D152: Market impact indicator | E152: 2013 | F152: 0.0009227549467 | G152: 0.005641171994 | H152: 0.01281392694 | I152: 0.02784436834 | J152: 0.01699961948 | L152: Market impact indicator2013
D153: Market impact indicator | E153: 2014 | F153: 0.03749048706 | G153: 0.007129946728 | H153: 0.008090753425 | I153: 0.002187975647 | J153: 0.01170091324 | L153: Market impact indicator2014
D154: Market impact indicator | E154: 2015 | F154: 0.0006278538813 | G154: 0.01264269406 | H154: 0.01806031202 | I154: 0.172564688 | J154: 0.002349695586 | L154: Market impact indicator2015
D155: Market impact indicator | E155: 2016 | F155: 0.000399543379 | G155: 0.02907153729 | H155: 0.1030060883 | I155: 0.1396689498 | J155: 0.02921423135 | L155: Market impact indicator2016
D156: Market impact indicator | E156: 2017 | F156: 0.0006944444444 | G156: 0.06477834855 | H156: 0.06159627093 | I156: 0.02214611872 | J156: 0.02570395738 | L156: Market impact indicator2017
D157: Market impact indicator | E157: 2018 | F157: 0.004242770167 | G157: 0.04696537291 | H157: 0.003025114155 | I157: 0.06868340944 | J157: 0.04052511416 | L157: Market impact indicator2018
D158: Maximum demand (MW) | E158: 2006 | F158: 7336.8405 | G158: 12600 | H158: 6717.51 | I158: 2716.662362 | J158: 1949.873 | L158: Maximum demand (MW)2006
D159: Maximum demand (MW) | E159: 2007 | F159: 7758.26744 | G159: 12400 | H159: 7719 | I159: 2707.049284 | J159: 2329.506 | L159: Maximum demand (MW)2007
D160: Maximum demand (MW) | E160: 2008 | F160: 7281.0681 | G160: 13200 | H160: 8721.38 | I160: 2939.80442 | J160: 2245.082 | L160: Maximum demand (MW)2008
D161: Maximum demand (MW) | E161: 2009 | F161: 7848.614416 | G161: 13700 | H161: 9260.43 | I161: 3128.41975 | J161: 2154.23 | L161: Maximum demand (MW)2009
D162: Maximum demand (MW) | E162: 2010 | F162: 8002.824568 | G162: 13200 | H162: 8974.76 | I162: 3055.21236 | J162: 2267.071 | L162: Maximum demand (MW)2010
D163: Maximum demand (MW) | E163: 2011 | F163: 7797.450764 | G163: 13700 | H163: 8812.86 | I163: 3169.099066 | J163: 2238.723 | L163: Maximum demand (MW)2011
D164: Maximum demand (MW) | E164: 2012 | F164: 7740.007068 | G164: 11900 | H164: 8071.43 | I164: 2807.677388 | J164: 2264.047 | L164: Maximum demand (MW)2012
D165: Maximum demand (MW) | E165: 2013 | F165: 7681.438938 | G165: 12700 | H165: 8410.82 | I165: 2913.555964 | J165: 2184.59 | L165: Maximum demand (MW)2013
D166: Maximum demand (MW) | E166: 2014 | F166: 7637.8836 | G166: 12100 | H166: 9137.4 | I166: 3115.138214 | J166: 2132 | L166: Maximum demand (MW)2014
D167: Maximum demand (MW) | E167: 2015 | F167: 8105.0588 | G167: 10900 | H167: 7714.953 | I167: 2668.456524 | J167: 2143.157178 | L167: Maximum demand (MW)2015
D168: Maximum demand (MW) | E168: 2016 | F168: 8272.121872 | G168: 11900 | H168: 8780.009717 | I168: 2804.476644 | J168: 2218.9 | L168: Maximum demand (MW)2016
D169: Maximum demand (MW) | E169: 2017 | F169: 8547.985832 | G169: 13200 | H169: 7979.837 | I169: 2955.01515 | J169: 1963.69113 | L169: Maximum demand (MW)2017
D170: Maximum demand (MW) | E170: 2018 | F170: 8788.580608 | G170: 12200 | H170: 8393.988 | I170: 2812.003652 | J170: 2184.504756 | L170: Maximum demand (MW)2018
D171: Maximum demand (MW) | E171: 2019 | F171: 8968.972492 | G171: 13000 | H171: 8683.903 | I171: 3192.898416 | J171: 2147.102824 | L171: Maximum demand (MW)2019
D172: Energy delivered (GWh) | E172: 2006 | F172: 51045.96344 | G172: 81538.36663 | H172: 45186.29968 | I172: 15241.18699 | J172: 10530.1088 | K172: 182631.4989 | L172: Energy delivered (GWh)2006
D173: Energy delivered (GWh) | E173: 2007 | F173: 51964.46568 | G173: 83028.25736 | H173: 45956.43707 | I173: 14809.02241 | J173: 12828.493 | K173: 186176.6668 | L173: Energy delivered (GWh)2007
D174: Energy delivered (GWh) | E174: 2008 | F174: 51187.3276 | G174: 82531.57103 | H174: 45046.71803 | I174: 14506.4318 | J174: 13500.337 | K174: 187629.6835 | L174: Energy delivered (GWh)2008
D175: Energy delivered (GWh) | E175: 2009 | F175: 52191.94826 | G175: 81126.23803 | H175: 47419.17905 | I175: 14847.61097 | J175: 13412.711 | K175: 187179.7504 | L175: Energy delivered (GWh)2009
D176: Energy delivered (GWh) | E176: 2010 | F176: 52848.52063 | G176: 80626.11948 | H176: 48976.63624 | I176: 15008.3794 | J176: 13030.212 | K176: 185093.7098 | L176: Energy delivered (GWh)2010
D177: Energy delivered (GWh) | E177: 2011 | F177: 51917.07119 | G177: 79831.33442 | H177: 48047.97099 | I177: 15262.88573 | J177: 13108.443 | K177: 181765.9955 | L177: Energy delivered (GWh)2011
D178: Energy delivered (GWh) | E178: 2012 | F178: 50878.57698 | G178: 76646.15064 | H178: 47529.36126 | I178: 15068.93276 | J178: 12589.843 | K178: 179217.0829 | L178: Energy delivered (GWh)2012
D179: Energy delivered (GWh) | E179: 2013 | F179: 49333.93867 | G179: 71147.66818 | H179: 49056.42848 | I179: 15061.13682 | J179: 12866.188 | K179: 174799.61 | L179: Energy delivered (GWh)2013
D180: Energy delivered (GWh) | E180: 2014 | F180: 47613.58142 | G180: 67800 | H180: 48503.77156 | I180: 14707.39394 | J180: 13359.9638 | K180: 170562.8549 | L180: Energy delivered (GWh)2014
D181: Energy delivered (GWh) | E181: 2015 | F181: 53087.56343 | G181: 74400 | H181: 47967.07702 | I181: 14485.73363 | J181: 13109.62408 | K181: 173326.2486 | L181: Energy delivered (GWh)2015
D182: Energy delivered (GWh) | E182: 2016 | F182: 52872.38758 | G182: 72200 | H182: 47805.24582 | I182: 15043.14893 | J182: 11654.5739 | K182: 177091.9191 | L182: Energy delivered (GWh)2016
D183: Energy delivered (GWh) | E183: 2017 | F183: 54253.30002 | G183: 75000 | H183: 46829.30162 | I183: 15106.16124 | J183: 12426.66332 | K183: 177372.3798 | L183: Energy delivered (GWh)2017
D184: Energy delivered (GWh) | E184: 2018 | F184: 54849.85804 | G184: 75700 | H184: 42163.48841 | I184: 14127.75758 | J184: 12434.32612 | K184: 178090.8344 | L184: Energy delivered (GWh)2018
D185: Energy delivered (GWh) | E185: 2019 | F185: 53765.29422 | G185: 74400 | H185: 41479.99435 | I185: 13786.71469 | J185: 12884.56399 | K185: 177692.7752 | L185: Energy delivered (GWh)2019
D186: Circuit length | E186: 2006 | F186: 11700.8 | G186: 12517.231 | H186: 6573 | I186: 5600.539 | J186: 3581.3 | K186: 39972.87 | L186: Circuit length2006
D187: Circuit length | E187: 2007 | F187: 11892.8 | G187: 12526.494 | H187: 6573 | I187: 5518.669 | J187: 3622.3 | K187: 40133.263 | L187: Circuit length2007
D188: Circuit length | E188: 2008 | F188: 12428.8 | G188: 12523.514 | H188: 6573 | I188: 5518.669 | J188: 3622.3 | K188: 40666.283 | L188: Circuit length2008
D189: Circuit length | E189: 2009 | F189: 12865.1 | G189: 12523.349 | H189: 6573 | I189: 5503.669 | J189: 3520.3 | K189: 40985.418 | L189: Circuit length2009
D190: Circuit length | E190: 2010 | F190: 13321.1 | G190: 12682.459 | H190: 6573 | I190: 5501.669 | J190: 3481.3 | K190: 41559.528 | L190: Circuit length2010
D191: Circuit length | E191: 2011 | F191: 13738.4 | G191: 12681.863 | H191: 6573 | I191: 5504.669 | J191: 3493.3 | K191: 41991.232 | L191: Circuit length2011
D192: Circuit length | E192: 2012 | F192: 13702.4 | G192: 12697.207 | H192: 6573 | I192: 5526.069 | J192: 3493.3 | K192: 41991.976 | L192: Circuit length2012
D193: Circuit length | E193: 2013 | F193: 14313.5 | G193: 12893.617 | H193: 6573 | I193: 5527.349 | J193: 3503.19 | K193: 42810.656 | L193: Circuit length2013
D194: Circuit length | E194: 2014 | F194: 14772.5 | G194: 12929.666 | H194: 6573 | I194: 5529.403054 | J194: 3503.8 | K194: 43308.36905 | L194: Circuit length2014
D195: Circuit length | E195: 2015 | F195: 14754.5 | G195: 13024.7647 | H195: 6573.2 | I195: 5521.349 | J195: 3563.7 | K195: 43437.5137 | L195: Circuit length2015
D196: Circuit length | E196: 2016 | F196: 14755.5 | G196: 13039.195 | H196: 6558.844757 | I196: 5524.349 | J196: 3563.7 | K196: 43441.58876 | L196: Circuit length2016
D197: Circuit length | E197: 2017 | F197: 14532.5 | G197: 13078.1134 | H197: 6559.972081 | I197: 5519.569 | J197: 3563.7 | K197: 43253.85448 | L197: Circuit length2017
D198: Circuit length | E198: 2018 | F198: 14527.5 | G198: 13089.4947 | H198: 6623.72 | I198: 5522.169 | J198: 3545.2 | K198: 43308.0837 | L198: Circuit length2018
D199: Circuit length | E199: 2019 | F199: 14526.2 | G199: 13052.37522 | H199: 6627.77 | I199: 5512.669 | J199: 3545.2 | K199: 43264.21422 | L199: Circuit length2019
D200: Circuit length - overhead | E200: 2006 | F200: 11685 | G200: 12469.323 | H200: 6562 | I200: 5591.75 | J200: 3568 | K200: 39876.073 | L200: =D200&E200 -> Circuit length - overhead2006
D201: Circuit length - overhead | E201: 2007 | F201: 11877 | G201: 12478.586 | H201: 6562 | I201: 5509.88 | J201: 3609 | K201: 40036.466 | L201: Circuit length - overhead2007
D202: Circuit length - overhead | E202: 2008 | F202: 12413 | G202: 12475.606 | H202: 6562 | I202: 5509.88 | J202: 3609 | K202: 40569.486 | L202: Circuit length - overhead2008
D203: Circuit length - overhead | E203: 2009 | F203: 12848 | G203: 12475.441 | H203: 6562 | I203: 5494.88 | J203: 3507 | K203: 40887.321 | L203: Circuit length - overhead2009
... 24 more rows

Sheet Calculations (hidden)
D3: Calculations
D5: Summary statistics
D7: Match | E7: =Dashboard!F3 -> Powerlink
E9: 2006 | F9: 2007 | G9: 2008 | H9: 2009 | I9: 2010 | J9: 2011 | K9: 2012 | L9: 2013 | M9: 2014 | N9: 2015 | O9: 2016 | P9: 2017 | Q9: 2018 | R9: 2019 | S9: 2020 | T9: 2021 | U9: 2022
D10: Actual revenue | E10: =INDEX('New data sheet'!$F:$K,MATCH($D10&E$9,'New data sheet'!$L:$L,0),MATCH($E$7,'New data sheet'!$F$6:$K$6,0)) -> 524.43109 | F10: =INDEX('New data sheet'!$F:$K,MATCH($D10&F$9,'New data sheet'!$L:$L,0),MATCH($E$7,'New data sheet'!$F$6:$K$6,0)) -> 556.8111823 | G10: =INDEX('New data sheet'!$F:$K,MATCH($D10&G$9,'New data sheet'!$L:$L,0),MATCH($E$7,'New data sheet'!$F$6:$K$6,0)) -> 602.3278872 | H10: =INDEX('New data sheet'!$F:$K,MATCH($D10&H$9,'New data sheet'!$L:$L,0),MATCH($E$7,'New data sheet'!$F$6:$K$6,0)) -> 627.9669953 | I10: =INDEX('New data sheet'!$F:$K,MATCH($D10&I$9,'New data sheet'!$L:$L,0),MATCH($E$7,'New data sheet'!$F$6:$K$6,0)) -> 707.3585278 | J10: =INDEX('New data sheet'!$F:$K,MATCH($D10&J$9,'New data sheet'!$L:$L,0),MATCH($E$7,'New data sheet'!$F$6:$K$6,0)) -> 804.4757333 | K10: =INDEX('New data sheet'!$F:$K,MATCH($D10&K$9,'New data sheet'!$L:$L,0),MATCH($E$7,'New data sheet'!$F$6:$K$6,0)) -> 890.0368792 | L10: =INDEX('New data sheet'!$F:$K,MATCH($D10&L$9,'New data sheet'!$L:$L,0),MATCH($E$7,'New data sheet'!$F$6:$K$6,0)) -> 879.9657962 | M10: =INDEX('New data sheet'!$F:$K,MATCH($D10&M$9,'New data sheet'!$L:$L,0),MATCH($E$7,'New data sheet'!$F$6:$K$6,0)) -> 904.0144297 | N10: =INDEX('New data sheet'!$F:$K,MATCH($D10&N$9,'New data sheet'!$L:$L,0),MATCH($E$7,'New data sheet'!$F$6:$K$6,0)) -> 884.1102281 | O10: =INDEX('New data sheet'!$F:$K,MATCH($D10&O$9,'New data sheet'!$L:$L,0),MATCH($E$7,'New data sheet'!$F$6:$K$6,0)) -> 989.8715563 | P10: =INDEX('New data sheet'!$F:$K,MATCH($D10&P$9,'New data sheet'!$L:$L,0),MATCH($E$7,'New data sheet'!$F$6:$K$6,0)) -> 1104.878974 | Q10: =INDEX('New data sheet'!$F:$K,MATCH($D10&Q$9,'New data sheet'!$L:$L,0),MATCH($E$7,'New data sheet'!$F$6:$K$6,0)) -> 733.0270716 | R10: =INDEX('New data sheet'!$F:$K,MATCH($D10&R$9,'New data sheet'!$L:$L,0),MATCH($E$7,'New data sheet'!$F$6:$K$6,0)) -> 676.4057254 | S10: =INDEX('New data sheet'!$F:$K,MATCH($D10&S$9,'New data sheet'!$L:$L,0),MATCH($E$7,'New data sheet'!$F$6:$K$6,0)) ->  | T10: =INDEX('New data sheet'!$F:$K,MATCH($D10&T$9,'New data sheet'!$L:$L,0),MATCH($E$7,'New data sheet'!$F$6:$K$6,0)) ->  | U10: =INDEX('New data sheet'!$F:$K,MATCH($D10&U$9,'New data sheet'!$L:$L,0),MATCH($E$7,'New data sheet'!$F$6:$K$6,0)) -> 
D11: Actual closing RAB | E11: =INDEX('New data sheet'!$F:$K,MATCH($D11&E$9,'New data sheet'!$L:$L,0),MATCH($E$7,'New data sheet'!$F$6:$K$6,0)) -> 4077.615594 | F11: =INDEX('New data sheet'!$F:$K,MATCH($D11&F$9,'New data sheet'!$L:$L,0),MATCH($E$7,'New data sheet'!$F$6:$K$6,0)) -> 4967.110642 | G11: =INDEX('New data sheet'!$F:$K,MATCH($D11&G$9,'New data sheet'!$L:$L,0),MATCH($E$7,'New data sheet'!$F$6:$K$6,0)) -> 5647.778713 | H11: =INDEX('New data sheet'!$F:$K,MATCH($D11&H$9,'New data sheet'!$L:$L,0),MATCH($E$7,'New data sheet'!$F$6:$K$6,0)) -> 6215.607201 | I11: =INDEX('New data sheet'!$F:$K,MATCH($D11&I$9,'New data sheet'!$L:$L,0),MATCH($E$7,'New data sheet'!$F$6:$K$6,0)) -> 6539.169345 | J11: =INDEX('New data sheet'!$F:$K,MATCH($D11&J$9,'New data sheet'!$L:$L,0),MATCH($E$7,'New data sheet'!$F$6:$K$6,0)) -> 6807.08538 | K11: =INDEX('New data sheet'!$F:$K,MATCH($D11&K$9,'New data sheet'!$L:$L,0),MATCH($E$7,'New data sheet'!$F$6:$K$6,0)) -> 7375.960858 | L11: =INDEX('New data sheet'!$F:$K,MATCH($D11&L$9,'New data sheet'!$L:$L,0),MATCH($E$7,'New data sheet'!$F$6:$K$6,0)) -> 7665.005867 | M11: =INDEX('New data sheet'!$F:$K,MATCH($D11&M$9,'New data sheet'!$L:$L,0),MATCH($E$7,'New data sheet'!$F$6:$K$6,0)) -> 7774.227145 | N11: =INDEX('New data sheet'!$F:$K,MATCH($D11&N$9,'New data sheet'!$L:$L,0),MATCH($E$7,'New data sheet'!$F$6:$K$6,0)) -> 7676.138952 | O11: =INDEX('New data sheet'!$F:$K,MATCH($D11&O$9,'New data sheet'!$L:$L,0),MATCH($E$7,'New data sheet'!$F$6:$K$6,0)) -> 7532.097408 | P11: =INDEX('New data sheet'!$F:$K,MATCH($D11&P$9,'New data sheet'!$L:$L,0),MATCH($E$7,'New data sheet'!$F$6:$K$6,0)) -> 7332.907227 | Q11: =INDEX('New data sheet'!$F:$K,MATCH($D11&Q$9,'New data sheet'!$L:$L,0),MATCH($E$7,'New data sheet'!$F$6:$K$6,0)) -> 7240.6761 | R11: =INDEX('New data sheet'!$F:$K,MATCH($D11&R$9,'New data sheet'!$L:$L,0),MATCH($E$7,'New data sheet'!$F$6:$K$6,0)) -> 7129.226181 | S11: =INDEX('New data sheet'!$F:$K,MATCH($D11&S$9,'New data sheet'!$L:$L,0),MATCH($E$7,'New data sheet'!$F$6:$K$6,0)) ->  | T11: =INDEX('New data sheet'!$F:$K,MATCH($D11&T$9,'New data sheet'!$L:$L,0),MATCH($E$7,'New data sheet'!$F$6:$K$6,0)) ->  | U11: =INDEX('New data sheet'!$F:$K,MATCH($D11&U$9,'New data sheet'!$L:$L,0),MATCH($E$7,'New data sheet'!$F$6:$K$6,0)) -> 
D12: Forecast closing RAB | E12: =INDEX('New data sheet'!$F:$K,MATCH($D12&E$9,'New data sheet'!$L:$L,0),MATCH($E$7,'New data sheet'!$F$6:$K$6,0)) -> 4065.12391 | F12: =INDEX('New data sheet'!$F:$K,MATCH($D12&F$9,'New data sheet'!$L:$L,0),MATCH($E$7,'New data sheet'!$F$6:$K$6,0)) -> 4000.914139 | G12: =INDEX('New data sheet'!$F:$K,MATCH($D12&G$9,'New data sheet'!$L:$L,0),MATCH($E$7,'New data sheet'!$F$6:$K$6,0)) -> 5726.44341 | H12: =INDEX('New data sheet'!$F:$K,MATCH($D12&H$9,'New data sheet'!$L:$L,0),MATCH($E$7,'New data sheet'!$F$6:$K$6,0)) -> 6372.003563 | I12: =INDEX('New data sheet'!$F:$K,MATCH($D12&I$9,'New data sheet'!$L:$L,0),MATCH($E$7,'New data sheet'!$F$6:$K$6,0)) -> 6709.87327 | J12: =INDEX('New data sheet'!$F:$K,MATCH($D12&J$9,'New data sheet'!$L:$L,0),MATCH($E$7,'New data sheet'!$F$6:$K$6,0)) -> 7093.899128 | K12: =INDEX('New data sheet'!$F:$K,MATCH($D12&K$9,'New data sheet'!$L:$L,0),MATCH($E$7,'New data sheet'!$F$6:$K$6,0)) -> 7373.54117 | L12: =INDEX('New data sheet'!$F:$K,MATCH($D12&L$9,'New data sheet'!$L:$L,0),MATCH($E$7,'New data sheet'!$F$6:$K$6,0)) -> 7935.332728 | M12: =INDEX('New data sheet'!$F:$K,MATCH($D12&M$9,'New data sheet'!$L:$L,0),MATCH($E$7,'New data sheet'!$F$6:$K$6,0)) -> 8329.16903 | N12: =INDEX('New data sheet'!$F:$K,MATCH($D12&N$9,'New data sheet'!$L:$L,0),MATCH($E$7,'New data sheet'!$F$6:$K$6,0)) -> 8501.071827 | O12: =INDEX('New data sheet'!$F:$K,MATCH($D12&O$9,'New data sheet'!$L:$L,0),MATCH($E$7,'New data sheet'!$F$6:$K$6,0)) -> 8704.313154 | P12: =INDEX('New data sheet'!$F:$K,MATCH($D12&P$9,'New data sheet'!$L:$L,0),MATCH($E$7,'New data sheet'!$F$6:$K$6,0)) -> 8963.750379 | Q12: =INDEX('New data sheet'!$F:$K,MATCH($D12&Q$9,'New data sheet'!$L:$L,0),MATCH($E$7,'New data sheet'!$F$6:$K$6,0)) -> 7240.6761 | R12: =INDEX('New data sheet'!$F:$K,MATCH($D12&R$9,'New data sheet'!$L:$L,0),MATCH($E$7,'New data sheet'!$F$6:$K$6,0)) -> 7129.226181 | S12: =INDEX('New data sheet'!$F:$K,MATCH($D12&S$9,'New data sheet'!$L:$L,0),MATCH($E$7,'New data sheet'!$F$6:$K$6,0)) ->  | T12: =INDEX('New data sheet'!$F:$K,MATCH($D12&T$9,'New data sheet'!$L:$L,0),MATCH($E$7,'New data sheet'!$F$6:$K$6,0)) ->  | U12: =INDEX('New data sheet'!$F:$K,MATCH($D12&U$9,'New data sheet'!$L:$L,0),MATCH($E$7,'New data sheet'!$F$6:$K$6,0)) -> 
D13: Actual annual capex | E13: =INDEX('New data sheet'!$F:$K,MATCH($D13&E$9,'New data sheet'!$L:$L,0),MATCH($E$7,'New data sheet'!$F$6:$K$6,0)) -> 367.8080432 | F13: =INDEX('New data sheet'!$F:$K,MATCH($D13&F$9,'New data sheet'!$L:$L,0),MATCH($E$7,'New data sheet'!$F$6:$K$6,0)) -> 329.2743953 | G13: =INDEX('New data sheet'!$F:$K,MATCH($D13&G$9,'New data sheet'!$L:$L,0),MATCH($E$7,'New data sheet'!$F$6:$K$6,0)) -> 859.3500549 | H13: =INDEX('New data sheet'!$F:$K,MATCH($D13&H$9,'New data sheet'!$L:$L,0),MATCH($E$7,'New data sheet'!$F$6:$K$6,0)) -> 778.7910246 | I13: =INDEX('New data sheet'!$F:$K,MATCH($D13&I$9,'New data sheet'!$L:$L,0),MATCH($E$7,'New data sheet'!$F$6:$K$6,0)) -> 542.3347441 | J13: =INDEX('New data sheet'!$F:$K,MATCH($D13&J$9,'New data sheet'!$L:$L,0),MATCH($E$7,'New data sheet'!$F$6:$K$6,0)) -> 502.1146848 | K13: =INDEX('New data sheet'!$F:$K,MATCH($D13&K$9,'New data sheet'!$L:$L,0),MATCH($E$7,'New data sheet'!$F$6:$K$6,0)) -> 729.4077938 | L13: =INDEX('New data sheet'!$F:$K,MATCH($D13&L$9,'New data sheet'!$L:$L,0),MATCH($E$7,'New data sheet'!$F$6:$K$6,0)) -> 507.091497 | M13: =INDEX('New data sheet'!$F:$K,MATCH($D13&M$9,'New data sheet'!$L:$L,0),MATCH($E$7,'New data sheet'!$F$6:$K$6,0)) -> 348.9134532 | N13: =INDEX('New data sheet'!$F:$K,MATCH($D13&N$9,'New data sheet'!$L:$L,0),MATCH($E$7,'New data sheet'!$F$6:$K$6,0)) -> 172.2942203 | O13: =INDEX('New data sheet'!$F:$K,MATCH($D13&O$9,'New data sheet'!$L:$L,0),MATCH($E$7,'New data sheet'!$F$6:$K$6,0)) -> 141.1664299 | P13: =INDEX('New data sheet'!$F:$K,MATCH($D13&P$9,'New data sheet'!$L:$L,0),MATCH($E$7,'New data sheet'!$F$6:$K$6,0)) -> 180.0710345 | Q13: =INDEX('New data sheet'!$F:$K,MATCH($D13&Q$9,'New data sheet'!$L:$L,0),MATCH($E$7,'New data sheet'!$F$6:$K$6,0)) -> 153.5356785 | R13: =INDEX('New data sheet'!$F:$K,MATCH($D13&R$9,'New data sheet'!$L:$L,0),MATCH($E$7,'New data sheet'!$F$6:$K$6,0)) -> 169.2739498 | S13: =INDEX('New data sheet'!$F:$K,MATCH($D13&S$9,'New data sheet'!$L:$L,0),MATCH($E$7,'New data sheet'!$F$6:$K$6,0)) ->  | T13: =INDEX('New data sheet'!$F:$K,MATCH($D13&T$9,'New data sheet'!$L:$L,0),MATCH($E$7,'New data sheet'!$F$6:$K$6,0)) ->  | U13: =INDEX('New data sheet'!$F:$K,MATCH($D13&U$9,'New data sheet'!$L:$L,0),MATCH($E$7,'New data sheet'!$F$6:$K$6,0)) -> 
D14: Forecast annual capex | E14: =INDEX('New data sheet'!$F:$K,MATCH($D14&E$9,'New data sheet'!$L:$L,0),MATCH($E$7,'New data sheet'!$F$6:$K$6,0)) -> 276.1022522 | F14: =INDEX('New data sheet'!$F:$K,MATCH($D14&F$9,'New data sheet'!$L:$L,0),MATCH($E$7,'New data sheet'!$F$6:$K$6,0)) -> 123.6591478 | G14: =INDEX('New data sheet'!$F:$K,MATCH($D14&G$9,'New data sheet'!$L:$L,0),MATCH($E$7,'New data sheet'!$F$6:$K$6,0)) -> 937.041176 | H14: =INDEX('New data sheet'!$F:$K,MATCH($D14&H$9,'New data sheet'!$L:$L,0),MATCH($E$7,'New data sheet'!$F$6:$K$6,0)) -> 854.7923609 | I14: =INDEX('New data sheet'!$F:$K,MATCH($D14&I$9,'New data sheet'!$L:$L,0),MATCH($E$7,'New data sheet'!$F$6:$K$6,0)) -> 566.5029188 | J14: =INDEX('New data sheet'!$F:$K,MATCH($D14&J$9,'New data sheet'!$L:$L,0),MATCH($E$7,'New data sheet'!$F$6:$K$6,0)) -> 625.4060055 | K14: =INDEX('New data sheet'!$F:$K,MATCH($D14&K$9,'New data sheet'!$L:$L,0),MATCH($E$7,'New data sheet'!$F$6:$K$6,0)) -> 532.8982186 | L14: =INDEX('New data sheet'!$F:$K,MATCH($D14&L$9,'New data sheet'!$L:$L,0),MATCH($E$7,'New data sheet'!$F$6:$K$6,0)) -> 770.5457149 | M14: =INDEX('New data sheet'!$F:$K,MATCH($D14&M$9,'New data sheet'!$L:$L,0),MATCH($E$7,'New data sheet'!$F$6:$K$6,0)) -> 636.240245 | N14: =INDEX('New data sheet'!$F:$K,MATCH($D14&N$9,'New data sheet'!$L:$L,0),MATCH($E$7,'New data sheet'!$F$6:$K$6,0)) -> 453.1182624 | O14: =INDEX('New data sheet'!$F:$K,MATCH($D14&O$9,'New data sheet'!$L:$L,0),MATCH($E$7,'New data sheet'!$F$6:$K$6,0)) -> 503.7879566 | P14: =INDEX('New data sheet'!$F:$K,MATCH($D14&P$9,'New data sheet'!$L:$L,0),MATCH($E$7,'New data sheet'!$F$6:$K$6,0)) -> 570.4341803 | Q14: =INDEX('New data sheet'!$F:$K,MATCH($D14&Q$9,'New data sheet'!$L:$L,0),MATCH($E$7,'New data sheet'!$F$6:$K$6,0)) -> 170.5998491 | R14: =INDEX('New data sheet'!$F:$K,MATCH($D14&R$9,'New data sheet'!$L:$L,0),MATCH($E$7,'New data sheet'!$F$6:$K$6,0)) -> 171.2919456 | S14: =INDEX('New data sheet'!$F:$K,MATCH($D14&S$9,'New data sheet'!$L:$L,0),MATCH($E$7,'New data sheet'!$F$6:$K$6,0)) ->  | T14: =INDEX('New data sheet'!$F:$K,MATCH($D14&T$9,'New data sheet'!$L:$L,0),MATCH($E$7,'New data sheet'!$F$6:$K$6,0)) ->  | U14: =INDEX('New data sheet'!$F:$K,MATCH($D14&U$9,'New data sheet'!$L:$L,0),MATCH($E$7,'New data sheet'!$F$6:$K$6,0)) -> 
D15: Actual annual opex | E15: =INDEX('New data sheet'!$F:$K,MATCH($D15&E$9,'New data sheet'!$L:$L,0),MATCH($E$7,'New data sheet'!$F$6:$K$6,0)) -> 163.4279308 | F15: =INDEX('New data sheet'!$F:$K,MATCH($D15&F$9,'New data sheet'!$L:$L,0),MATCH($E$7,'New data sheet'!$F$6:$K$6,0)) -> 171.8219661 | G15: =INDEX('New data sheet'!$F:$K,MATCH($D15&G$9,'New data sheet'!$L:$L,0),MATCH($E$7,'New data sheet'!$F$6:$K$6,0)) -> 186.8203262 | H15: =INDEX('New data sheet'!$F:$K,MATCH($D15&H$9,'New data sheet'!$L:$L,0),MATCH($E$7,'New data sheet'!$F$6:$K$6,0)) -> 179.1139079 | I15: =INDEX('New data sheet'!$F:$K,MATCH($D15&I$9,'New data sheet'!$L:$L,0),MATCH($E$7,'New data sheet'!$F$6:$K$6,0)) -> 185.5684452 | J15: =INDEX('New data sheet'!$F:$K,MATCH($D15&J$9,'New data sheet'!$L:$L,0),MATCH($E$7,'New data sheet'!$F$6:$K$6,0)) -> 178.9362036 | K15: =INDEX('New data sheet'!$F:$K,MATCH($D15&K$9,'New data sheet'!$L:$L,0),MATCH($E$7,'New data sheet'!$F$6:$K$6,0)) -> 185.4661861 | L15: =INDEX('New data sheet'!$F:$K,MATCH($D15&L$9,'New data sheet'!$L:$L,0),MATCH($E$7,'New data sheet'!$F$6:$K$6,0)) -> 189.6792582 | M15: =INDEX('New data sheet'!$F:$K,MATCH($D15&M$9,'New data sheet'!$L:$L,0),MATCH($E$7,'New data sheet'!$F$6:$K$6,0)) -> 199.7151405 | N15: =INDEX('New data sheet'!$F:$K,MATCH($D15&N$9,'New data sheet'!$L:$L,0),MATCH($E$7,'New data sheet'!$F$6:$K$6,0)) -> 228.2278419 | O15: =INDEX('New data sheet'!$F:$K,MATCH($D15&O$9,'New data sheet'!$L:$L,0),MATCH($E$7,'New data sheet'!$F$6:$K$6,0)) -> 232.0794041 | P15: =INDEX('New data sheet'!$F:$K,MATCH($D15&P$9,'New data sheet'!$L:$L,0),MATCH($E$7,'New data sheet'!$F$6:$K$6,0)) -> 237.1758448 | Q15: =INDEX('New data sheet'!$F:$K,MATCH($D15&Q$9,'New data sheet'!$L:$L,0),MATCH($E$7,'New data sheet'!$F$6:$K$6,0)) -> 192.7756964 | R15: =INDEX('New data sheet'!$F:$K,MATCH($D15&R$9,'New data sheet'!$L:$L,0),MATCH($E$7,'New data sheet'!$F$6:$K$6,0)) -> 201.1375615 | S15: =INDEX('New data sheet'!$F:$K,MATCH($D15&S$9,'New data sheet'!$L:$L,0),MATCH($E$7,'New data sheet'!$F$6:$K$6,0)) ->  | T15: =INDEX('New data sheet'!$F:$K,MATCH($D15&T$9,'New data sheet'!$L:$L,0),MATCH($E$7,'New data sheet'!$F$6:$K$6,0)) ->  | U15: =INDEX('New data sheet'!$F:$K,MATCH($D15&U$9,'New data sheet'!$L:$L,0),MATCH($E$7,'New data sheet'!$F$6:$K$6,0)) -> 
D16: Forecast annual opex | E16: =INDEX('New data sheet'!$F:$K,MATCH($D16&E$9,'New data sheet'!$L:$L,0),MATCH($E$7,'New data sheet'!$F$6:$K$6,0)) -> 124.8281784 | F16: =INDEX('New data sheet'!$F:$K,MATCH($D16&F$9,'New data sheet'!$L:$L,0),MATCH($E$7,'New data sheet'!$F$6:$K$6,0)) -> 124.8330254 | G16: =INDEX('New data sheet'!$F:$K,MATCH($D16&G$9,'New data sheet'!$L:$L,0),MATCH($E$7,'New data sheet'!$F$6:$K$6,0)) -> 185.1979042 | H16: =INDEX('New data sheet'!$F:$K,MATCH($D16&H$9,'New data sheet'!$L:$L,0),MATCH($E$7,'New data sheet'!$F$6:$K$6,0)) -> 186.0192818 | I16: =INDEX('New data sheet'!$F:$K,MATCH($D16&I$9,'New data sheet'!$L:$L,0),MATCH($E$7,'New data sheet'!$F$6:$K$6,0)) -> 199.9000098 | J16: =INDEX('New data sheet'!$F:$K,MATCH($D16&J$9,'New data sheet'!$L:$L,0),MATCH($E$7,'New data sheet'!$F$6:$K$6,0)) -> 191.1147709 | K16: =INDEX('New data sheet'!$F:$K,MATCH($D16&K$9,'New data sheet'!$L:$L,0),MATCH($E$7,'New data sheet'!$F$6:$K$6,0)) -> 196.8394764 | L16: =INDEX('New data sheet'!$F:$K,MATCH($D16&L$9,'New data sheet'!$L:$L,0),MATCH($E$7,'New data sheet'!$F$6:$K$6,0)) -> 203.3318975 | M16: =INDEX('New data sheet'!$F:$K,MATCH($D16&M$9,'New data sheet'!$L:$L,0),MATCH($E$7,'New data sheet'!$F$6:$K$6,0)) -> 211.065547 | N16: =INDEX('New data sheet'!$F:$K,MATCH($D16&N$9,'New data sheet'!$L:$L,0),MATCH($E$7,'New data sheet'!$F$6:$K$6,0)) -> 216.437169 | O16: =INDEX('New data sheet'!$F:$K,MATCH($D16&O$9,'New data sheet'!$L:$L,0),MATCH($E$7,'New data sheet'!$F$6:$K$6,0)) -> 224.5416114 | P16: =INDEX('New data sheet'!$F:$K,MATCH($D16&P$9,'New data sheet'!$L:$L,0),MATCH($E$7,'New data sheet'!$F$6:$K$6,0)) -> 231.0505953 | Q16: =INDEX('New data sheet'!$F:$K,MATCH($D16&Q$9,'New data sheet'!$L:$L,0),MATCH($E$7,'New data sheet'!$F$6:$K$6,0)) -> 204.2332943 | R16: =INDEX('New data sheet'!$F:$K,MATCH($D16&R$9,'New data sheet'!$L:$L,0),MATCH($E$7,'New data sheet'!$F$6:$K$6,0)) -> 203.3435447 | S16: =INDEX('New data sheet'!$F:$K,MATCH($D16&S$9,'New data sheet'!$L:$L,0),MATCH($E$7,'New data sheet'!$F$6:$K$6,0)) ->  | T16: =INDEX('New data sheet'!$F:$K,MATCH($D16&T$9,'New data sheet'!$L:$L,0),MATCH($E$7,'New data sheet'!$F$6:$K$6,0)) ->  | U16: =INDEX('New data sheet'!$F:$K,MATCH($D16&U$9,'New data sheet'!$L:$L,0),MATCH($E$7,'New data sheet'!$F$6:$K$6,0)) -> 
D17: Loss of supply events | E17: =INDEX('New data sheet'!$F:$K,MATCH($D17&E$9,'New data sheet'!$L:$L,0),MATCH($E$7,'New data sheet'!$F$6:$K$6,0)) -> 2 | F17: =INDEX('New data sheet'!$F:$K,MATCH($D17&F$9,'New data sheet'!$L:$L,0),MATCH($E$7,'New data sheet'!$F$6:$K$6,0)) -> 2 | G17: =INDEX('New data sheet'!$F:$K,MATCH($D17&G$9,'New data sheet'!$L:$L,0),MATCH($E$7,'New data sheet'!$F$6:$K$6,0)) -> 2 | H17: =INDEX('New data sheet'!$F:$K,MATCH($D17&H$9,'New data sheet'!$L:$L,0),MATCH($E$7,'New data sheet'!$F$6:$K$6,0)) -> 2 | I17: =INDEX('New data sheet'!$F:$K,MATCH($D17&I$9,'New data sheet'!$L:$L,0),MATCH($E$7,'New data sheet'!$F$6:$K$6,0)) -> 0 | J17: =INDEX('New data sheet'!$F:$K,MATCH($D17&J$9,'New data sheet'!$L:$L,0),MATCH($E$7,'New data sheet'!$F$6:$K$6,0)) -> 4 | K17: =INDEX('New data sheet'!$F:$K,MATCH($D17&K$9,'New data sheet'!$L:$L,0),MATCH($E$7,'New data sheet'!$F$6:$K$6,0)) -> 1 | L17: =INDEX('New data sheet'!$F:$K,MATCH($D17&L$9,'New data sheet'!$L:$L,0),MATCH($E$7,'New data sheet'!$F$6:$K$6,0)) -> 0 | M17: =INDEX('New data sheet'!$F:$K,MATCH($D17&M$9,'New data sheet'!$L:$L,0),MATCH($E$7,'New data sheet'!$F$6:$K$6,0)) -> 3 | N17: =INDEX('New data sheet'!$F:$K,MATCH($D17&N$9,'New data sheet'!$L:$L,0),MATCH($E$7,'New data sheet'!$F$6:$K$6,0)) -> 1 | O17: =INDEX('New data sheet'!$F:$K,MATCH($D17&O$9,'New data sheet'!$L:$L,0),MATCH($E$7,'New data sheet'!$F$6:$K$6,0)) -> 0 | P17: =INDEX('New data sheet'!$F:$K,MATCH($D17&P$9,'New data sheet'!$L:$L,0),MATCH($E$7,'New data sheet'!$F$6:$K$6,0)) -> 3 | Q17: =INDEX('New data sheet'!$F:$K,MATCH($D17&Q$9,'New data sheet'!$L:$L,0),MATCH($E$7,'New data sheet'!$F$6:$K$6,0)) -> 1 | R17: =INDEX('New data sheet'!$F:$K,MATCH($D17&R$9,'New data sheet'!$L:$L,0),MATCH($E$7,'New data sheet'!$F$6:$K$6,0)) ->  | S17: =INDEX('New data sheet'!$F:$K,MATCH($D17&S$9,'New data sheet'!$L:$L,0),MATCH($E$7,'New data sheet'!$F$6:$K$6,0)) ->  | T17: =INDEX('New data sheet'!$F:$K,MATCH($D17&T$9,'New data sheet'!$L:$L,0),MATCH($E$7,'New data sheet'!$F$6:$K$6,0)) ->  | U17: =INDEX('New data sheet'!$F:$K,MATCH($D17&U$9,'New data sheet'!$L:$L,0),MATCH($E$7,'New data sheet'!$F$6:$K$6,0)) -> 
D18: Average outage duration | E18: =INDEX('New data sheet'!$F:$K,MATCH($D18&E$9,'New data sheet'!$L:$L,0),MATCH($E$7,'New data sheet'!$F$6:$K$6,0)) -> 39.03476969 | F18: =INDEX('New data sheet'!$F:$K,MATCH($D18&F$9,'New data sheet'!$L:$L,0),MATCH($E$7,'New data sheet'!$F$6:$K$6,0)) -> 1249.943388 | G18: =INDEX('New data sheet'!$F:$K,MATCH($D18&G$9,'New data sheet'!$L:$L,0),MATCH($E$7,'New data sheet'!$F$6:$K$6,0)) -> 35.28963807 | H18: =INDEX('New data sheet'!$F:$K,MATCH($D18&H$9,'New data sheet'!$L:$L,0),MATCH($E$7,'New data sheet'!$F$6:$K$6,0)) -> 62.27619752 | I18: =INDEX('New data sheet'!$F:$K,MATCH($D18&I$9,'New data sheet'!$L:$L,0),MATCH($E$7,'New data sheet'!$F$6:$K$6,0)) -> 16.62000159 | J18: =INDEX('New data sheet'!$F:$K,MATCH($D18&J$9,'New data sheet'!$L:$L,0),MATCH($E$7,'New data sheet'!$F$6:$K$6,0)) -> 86.76942158 | K18: =INDEX('New data sheet'!$F:$K,MATCH($D18&K$9,'New data sheet'!$L:$L,0),MATCH($E$7,'New data sheet'!$F$6:$K$6,0)) -> 26.08666667 | L18: =INDEX('New data sheet'!$F:$K,MATCH($D18&L$9,'New data sheet'!$L:$L,0),MATCH($E$7,'New data sheet'!$F$6:$K$6,0)) -> 5.621428571 | M18: =INDEX('New data sheet'!$F:$K,MATCH($D18&M$9,'New data sheet'!$L:$L,0),MATCH($E$7,'New data sheet'!$F$6:$K$6,0)) -> 115.971 | N18: =INDEX('New data sheet'!$F:$K,MATCH($D18&N$9,'New data sheet'!$L:$L,0),MATCH($E$7,'New data sheet'!$F$6:$K$6,0)) -> 236.2286666 | O18: =INDEX('New data sheet'!$F:$K,MATCH($D18&O$9,'New data sheet'!$L:$L,0),MATCH($E$7,'New data sheet'!$F$6:$K$6,0)) -> 30.06 | P18: =INDEX('New data sheet'!$F:$K,MATCH($D18&P$9,'New data sheet'!$L:$L,0),MATCH($E$7,'New data sheet'!$F$6:$K$6,0)) -> 27.45 | Q18: =INDEX('New data sheet'!$F:$K,MATCH($D18&Q$9,'New data sheet'!$L:$L,0),MATCH($E$7,'New data sheet'!$F$6:$K$6,0)) -> 36.23818182 | R18: =INDEX('New data sheet'!$F:$K,MATCH($D18&R$9,'New data sheet'!$L:$L,0),MATCH($E$7,'New data sheet'!$F$6:$K$6,0)) ->  | S18: =INDEX('New data sheet'!$F:$K,MATCH($D18&S$9,'New data sheet'!$L:$L,0),MATCH($E$7,'New data sheet'!$F$6:$K$6,0)) ->  | T18: =INDEX('New data sheet'!$F:$K,MATCH($D18&T$9,'New data sheet'!$L:$L,0),MATCH($E$7,'New data sheet'!$F$6:$K$6,0)) ->  | U18: =INDEX('New data sheet'!$F:$K,MATCH($D18&U$9,'New data sheet'!$L:$L,0),MATCH($E$7,'New data sheet'!$F$6:$K$6,0)) -> 
D19: Market impact indicator | E19: =INDEX('New data sheet'!$F:$K,MATCH($D19&E$9,'New data sheet'!$L:$L,0),MATCH($E$7,'New data sheet'!$F$6:$K$6,0)) -> 0.03737633181 | F19: =INDEX('New data sheet'!$F:$K,MATCH($D19&F$9,'New data sheet'!$L:$L,0),MATCH($E$7,'New data sheet'!$F$6:$K$6,0)) -> 0.02527587519 | G19: =INDEX('New data sheet'!$F:$K,MATCH($D19&G$9,'New data sheet'!$L:$L,0),MATCH($E$7,'New data sheet'!$F$6:$K$6,0)) -> 0.01248097412 | H19: =INDEX('New data sheet'!$F:$K,MATCH($D19&H$9,'New data sheet'!$L:$L,0),MATCH($E$7,'New data sheet'!$F$6:$K$6,0)) -> 0.009874429224 | I19: =INDEX('New data sheet'!$F:$K,MATCH($D19&I$9,'New data sheet'!$L:$L,0),MATCH($E$7,'New data sheet'!$F$6:$K$6,0)) -> 0.01483066971 | J19: =INDEX('New data sheet'!$F:$K,MATCH($D19&J$9,'New data sheet'!$L:$L,0),MATCH($E$7,'New data sheet'!$F$6:$K$6,0)) -> 0.003177321157 | K19: =INDEX('New data sheet'!$F:$K,MATCH($D19&K$9,'New data sheet'!$L:$L,0),MATCH($E$7,'New data sheet'!$F$6:$K$6,0)) -> 0.002235540335 | L19: =INDEX('New data sheet'!$F:$K,MATCH($D19&L$9,'New data sheet'!$L:$L,0),MATCH($E$7,'New data sheet'!$F$6:$K$6,0)) -> 0.0009227549467 | M19: =INDEX('New data sheet'!$F:$K,MATCH($D19&M$9,'New data sheet'!$L:$L,0),MATCH($E$7,'New data sheet'!$F$6:$K$6,0)) -> 0.03749048706 | N19: =INDEX('New data sheet'!$F:$K,MATCH($D19&N$9,'New data sheet'!$L:$L,0),MATCH($E$7,'New data sheet'!$F$6:$K$6,0)) -> 0.0006278538813 | O19: =INDEX('New data sheet'!$F:$K,MATCH($D19&O$9,'New data sheet'!$L:$L,0),MATCH($E$7,'New data sheet'!$F$6:$K$6,0)) -> 0.000399543379 | P19: =INDEX('New data sheet'!$F:$K,MATCH($D19&P$9,'New data sheet'!$L:$L,0),MATCH($E$7,'New data sheet'!$F$6:$K$6,0)) -> 0.0006944444444 | Q19: =INDEX('New data sheet'!$F:$K,MATCH($D19&Q$9,'New data sheet'!$L:$L,0),MATCH($E$7,'New data sheet'!$F$6:$K$6,0)) -> 0.004242770167 | R19: =INDEX('New data sheet'!$F:$K,MATCH($D19&R$9,'New data sheet'!$L:$L,0),MATCH($E$7,'New data sheet'!$F$6:$K$6,0)) ->  | S19: =INDEX('New data sheet'!$F:$K,MATCH($D19&S$9,'New data sheet'!$L:$L,0),MATCH($E$7,'New data sheet'!$F$6:$K$6,0)) ->  | T19: =INDEX('New data sheet'!$F:$K,MATCH($D19&T$9,'New data sheet'!$L:$L,0),MATCH($E$7,'New data sheet'!$F$6:$K$6,0)) ->  | U19: =INDEX('New data sheet'!$F:$K,MATCH($D19&U$9,'New data sheet'!$L:$L,0),MATCH($E$7,'New data sheet'!$F$6:$K$6,0)) -> 
D20: Maximum demand (MW) | E20: =INDEX('New data sheet'!$F:$K,MATCH($D20&E$9,'New data sheet'!$L:$L,0),MATCH($E$7,'New data sheet'!$F$6:$K$6,0)) -> 7336.8405 | F20: =INDEX('New data sheet'!$F:$K,MATCH($D20&F$9,'New data sheet'!$L:$L,0),MATCH($E$7,'New data sheet'!$F$6:$K$6,0)) -> 7758.26744 | G20: =INDEX('New data sheet'!$F:$K,MATCH($D20&G$9,'New data sheet'!$L:$L,0),MATCH($E$7,'New data sheet'!$F$6:$K$6,0)) -> 7281.0681 | H20: =INDEX('New data sheet'!$F:$K,MATCH($D20&H$9,'New data sheet'!$L:$L,0),MATCH($E$7,'New data sheet'!$F$6:$K$6,0)) -> 7848.614416 | I20: =INDEX('New data sheet'!$F:$K,MATCH($D20&I$9,'New data sheet'!$L:$L,0),MATCH($E$7,'New data sheet'!$F$6:$K$6,0)) -> 8002.824568 | J20: =INDEX('New data sheet'!$F:$K,MATCH($D20&J$9,'New data sheet'!$L:$L,0),MATCH($E$7,'New data sheet'!$F$6:$K$6,0)) -> 7797.450764 | K20: =INDEX('New data sheet'!$F:$K,MATCH($D20&K$9,'New data sheet'!$L:$L,0),MATCH($E$7,'New data sheet'!$F$6:$K$6,0)) -> 7740.007068 | L20: =INDEX('New data sheet'!$F:$K,MATCH($D20&L$9,'New data sheet'!$L:$L,0),MATCH($E$7,'New data sheet'!$F$6:$K$6,0)) -> 7681.438938 | M20: =INDEX('New data sheet'!$F:$K,MATCH($D20&M$9,'New data sheet'!$L:$L,0),MATCH($E$7,'New data sheet'!$F$6:$K$6,0)) -> 7637.8836 | N20: =INDEX('New data sheet'!$F:$K,MATCH($D20&N$9,'New data sheet'!$L:$L,0),MATCH($E$7,'New data sheet'!$F$6:$K$6,0)) -> 8105.0588 | O20: =INDEX('New data sheet'!$F:$K,MATCH($D20&O$9,'New data sheet'!$L:$L,0),MATCH($E$7,'New data sheet'!$F$6:$K$6,0)) -> 8272.121872 | P20: =INDEX('New data sheet'!$F:$K,MATCH($D20&P$9,'New data sheet'!$L:$L,0),MATCH($E$7,'New data sheet'!$F$6:$K$6,0)) -> 8547.985832 | Q20: =INDEX('New data sheet'!$F:$K,MATCH($D20&Q$9,'New data sheet'!$L:$L,0),MATCH($E$7,'New data sheet'!$F$6:$K$6,0)) -> 8788.580608 | R20: =INDEX('New data sheet'!$F:$K,MATCH($D20&R$9,'New data sheet'!$L:$L,0),MATCH($E$7,'New data sheet'!$F$6:$K$6,0)) -> 8968.972492 | S20: =INDEX('New data sheet'!$F:$K,MATCH($D20&S$9,'New data sheet'!$L:$L,0),MATCH($E$7,'New data sheet'!$F$6:$K$6,0)) ->  | T20: =INDEX('New data sheet'!$F:$K,MATCH($D20&T$9,'New data sheet'!$L:$L,0),MATCH($E$7,'New data sheet'!$F$6:$K$6,0)) ->  | U20: =INDEX('New data sheet'!$F:$K,MATCH($D20&U$9,'New data sheet'!$L:$L,0),MATCH($E$7,'New data sheet'!$F$6:$K$6,0)) -> 
D21: Energy delivered (GWh) | E21: =INDEX('New data sheet'!$F:$K,MATCH($D21&E$9,'New data sheet'!$L:$L,0),MATCH($E$7,'New data sheet'!$F$6:$K$6,0)) -> 51045.96344 | F21: =INDEX('New data sheet'!$F:$K,MATCH($D21&F$9,'New data sheet'!$L:$L,0),MATCH($E$7,'New data sheet'!$F$6:$K$6,0)) -> 51964.46568 | G21: =INDEX('New data sheet'!$F:$K,MATCH($D21&G$9,'New data sheet'!$L:$L,0),MATCH($E$7,'New data sheet'!$F$6:$K$6,0)) -> 51187.3276 | H21: =INDEX('New data sheet'!$F:$K,MATCH($D21&H$9,'New data sheet'!$L:$L,0),MATCH($E$7,'New data sheet'!$F$6:$K$6,0)) -> 52191.94826 | I21: =INDEX('New data sheet'!$F:$K,MATCH($D21&I$9,'New data sheet'!$L:$L,0),MATCH($E$7,'New data sheet'!$F$6:$K$6,0)) -> 52848.52063 | J21: =INDEX('New data sheet'!$F:$K,MATCH($D21&J$9,'New data sheet'!$L:$L,0),MATCH($E$7,'New data sheet'!$F$6:$K$6,0)) -> 51917.07119 | K21: =INDEX('New data sheet'!$F:$K,MATCH($D21&K$9,'New data sheet'!$L:$L,0),MATCH($E$7,'New data sheet'!$F$6:$K$6,0)) -> 50878.57698 | L21: =INDEX('New data sheet'!$F:$K,MATCH($D21&L$9,'New data sheet'!$L:$L,0),MATCH($E$7,'New data sheet'!$F$6:$K$6,0)) -> 49333.93867 | M21: =INDEX('New data sheet'!$F:$K,MATCH($D21&M$9,'New data sheet'!$L:$L,0),MATCH($E$7,'New data sheet'!$F$6:$K$6,0)) -> 47613.58142 | N21: =INDEX('New data sheet'!$F:$K,MATCH($D21&N$9,'New data sheet'!$L:$L,0),MATCH($E$7,'New data sheet'!$F$6:$K$6,0)) -> 53087.56343 | O21: =INDEX('New data sheet'!$F:$K,MATCH($D21&O$9,'New data sheet'!$L:$L,0),MATCH($E$7,'New data sheet'!$F$6:$K$6,0)) -> 52872.38758 | P21: =INDEX('New data sheet'!$F:$K,MATCH($D21&P$9,'New data sheet'!$L:$L,0),MATCH($E$7,'New data sheet'!$F$6:$K$6,0)) -> 54253.30002 | Q21: =INDEX('New data sheet'!$F:$K,MATCH($D21&Q$9,'New data sheet'!$L:$L,0),MATCH($E$7,'New data sheet'!$F$6:$K$6,0)) -> 54849.85804 | R21: =INDEX('New data sheet'!$F:$K,MATCH($D21&R$9,'New data sheet'!$L:$L,0),MATCH($E$7,'New data sheet'!$F$6:$K$6,0)) -> 53765.29422 | S21: =INDEX('New data sheet'!$F:$K,MATCH($D21&S$9,'New data sheet'!$L:$L,0),MATCH($E$7,'New data sheet'!$F$6:$K$6,0)) ->  | T21: =INDEX('New data sheet'!$F:$K,MATCH($D21&T$9,'New data sheet'!$L:$L,0),MATCH($E$7,'New data sheet'!$F$6:$K$6,0)) ->  | U21: =INDEX('New data sheet'!$F:$K,MATCH($D21&U$9,'New data sheet'!$L:$L,0),MATCH($E$7,'New data sheet'!$F$6:$K$6,0)) -> 
D22: Circuit length | E22: =INDEX('New data sheet'!$F:$K,MATCH($D22&E$9,'New data sheet'!$L:$L,0),MATCH($E$7,'New data sheet'!$F$6:$K$6,0)) -> 11700.8 | F22: =INDEX('New data sheet'!$F:$K,MATCH($D22&F$9,'New data sheet'!$L:$L,0),MATCH($E$7,'New data sheet'!$F$6:$K$6,0)) -> 11892.8 | G22: =INDEX('New data sheet'!$F:$K,MATCH($D22&G$9,'New data sheet'!$L:$L,0),MATCH($E$7,'New data sheet'!$F$6:$K$6,0)) -> 12428.8 | H22: =INDEX('New data sheet'!$F:$K,MATCH($D22&H$9,'New data sheet'!$L:$L,0),MATCH($E$7,'New data sheet'!$F$6:$K$6,0)) -> 12865.1 | I22: =INDEX('New data sheet'!$F:$K,MATCH($D22&I$9,'New data sheet'!$L:$L,0),MATCH($E$7,'New data sheet'!$F$6:$K$6,0)) -> 13321.1 | J22: =INDEX('New data sheet'!$F:$K,MATCH($D22&J$9,'New data sheet'!$L:$L,0),MATCH($E$7,'New data sheet'!$F$6:$K$6,0)) -> 13738.4 | K22: =INDEX('New data sheet'!$F:$K,MATCH($D22&K$9,'New data sheet'!$L:$L,0),MATCH($E$7,'New data sheet'!$F$6:$K$6,0)) -> 13702.4 | L22: =INDEX('New data sheet'!$F:$K,MATCH($D22&L$9,'New data sheet'!$L:$L,0),MATCH($E$7,'New data sheet'!$F$6:$K$6,0)) -> 14313.5 | M22: =INDEX('New data sheet'!$F:$K,MATCH($D22&M$9,'New data sheet'!$L:$L,0),MATCH($E$7,'New data sheet'!$F$6:$K$6,0)) -> 14772.5 | N22: =INDEX('New data sheet'!$F:$K,MATCH($D22&N$9,'New data sheet'!$L:$L,0),MATCH($E$7,'New data sheet'!$F$6:$K$6,0)) -> 14754.5 | O22: =INDEX('New data sheet'!$F:$K,MATCH($D22&O$9,'New data sheet'!$L:$L,0),MATCH($E$7,'New data sheet'!$F$6:$K$6,0)) -> 14755.5 | P22: =INDEX('New data sheet'!$F:$K,MATCH($D22&P$9,'New data sheet'!$L:$L,0),MATCH($E$7,'New data sheet'!$F$6:$K$6,0)) -> 14532.5 | Q22: =INDEX('New data sheet'!$F:$K,MATCH($D22&Q$9,'New data sheet'!$L:$L,0),MATCH($E$7,'New data sheet'!$F$6:$K$6,0)) -> 14527.5 | R22: =INDEX('New data sheet'!$F:$K,MATCH($D22&R$9,'New data sheet'!$L:$L,0),MATCH($E$7,'New data sheet'!$F$6:$K$6,0)) -> 14526.2 | S22: =INDEX('New data sheet'!$F:$K,MATCH($D22&S$9,'New data sheet'!$L:$L,0),MATCH($E$7,'New data sheet'!$F$6:$K$6,0)) ->  | T22: =INDEX('New data sheet'!$F:$K,MATCH($D22&T$9,'New data sheet'!$L:$L,0),MATCH($E$7,'New data sheet'!$F$6:$K$6,0)) ->  | U22: =INDEX('New data sheet'!$F:$K,MATCH($D22&U$9,'New data sheet'!$L:$L,0),MATCH($E$7,'New data sheet'!$F$6:$K$6,0)) -> 
D23: Circuit length - overhead | E23: =INDEX('New data sheet'!$F:$K,MATCH($D23&E$9,'New data sheet'!$L:$L,0),MATCH($E$7,'New data sheet'!$F$6:$K$6,0)) -> 11685 | F23: =INDEX('New data sheet'!$F:$K,MATCH($D23&F$9,'New data sheet'!$L:$L,0),MATCH($E$7,'New data sheet'!$F$6:$K$6,0)) -> 11877 | G23: =INDEX('New data sheet'!$F:$K,MATCH($D23&G$9,'New data sheet'!$L:$L,0),MATCH($E$7,'New data sheet'!$F$6:$K$6,0)) -> 12413 | H23: =INDEX('New data sheet'!$F:$K,MATCH($D23&H$9,'New data sheet'!$L:$L,0),MATCH($E$7,'New data sheet'!$F$6:$K$6,0)) -> 12848 | I23: =INDEX('New data sheet'!$F:$K,MATCH($D23&I$9,'New data sheet'!$L:$L,0),MATCH($E$7,'New data sheet'!$F$6:$K$6,0)) -> 13304 | J23: =INDEX('New data sheet'!$F:$K,MATCH($D23&J$9,'New data sheet'!$L:$L,0),MATCH($E$7,'New data sheet'!$F$6:$K$6,0)) -> 13717 | K23: =INDEX('New data sheet'!$F:$K,MATCH($D23&K$9,'New data sheet'!$L:$L,0),MATCH($E$7,'New data sheet'!$F$6:$K$6,0)) -> 13681 | L23: =INDEX('New data sheet'!$F:$K,MATCH($D23&L$9,'New data sheet'!$L:$L,0),MATCH($E$7,'New data sheet'!$F$6:$K$6,0)) -> 14292 | M23: =INDEX('New data sheet'!$F:$K,MATCH($D23&M$9,'New data sheet'!$L:$L,0),MATCH($E$7,'New data sheet'!$F$6:$K$6,0)) -> 14751 | N23: =INDEX('New data sheet'!$F:$K,MATCH($D23&N$9,'New data sheet'!$L:$L,0),MATCH($E$7,'New data sheet'!$F$6:$K$6,0)) -> 14733 | O23: =INDEX('New data sheet'!$F:$K,MATCH($D23&O$9,'New data sheet'!$L:$L,0),MATCH($E$7,'New data sheet'!$F$6:$K$6,0)) -> 14734 | P23: =INDEX('New data sheet'!$F:$K,MATCH($D23&P$9,'New data sheet'!$L:$L,0),MATCH($E$7,'New data sheet'!$F$6:$K$6,0)) -> 14511 | Q23: =INDEX('New data sheet'!$F:$K,MATCH($D23&Q$9,'New data sheet'!$L:$L,0),MATCH($E$7,'New data sheet'!$F$6:$K$6,0)) -> 14506 | R23: =INDEX('New data sheet'!$F:$K,MATCH($D23&R$9,'New data sheet'!$L:$L,0),MATCH($E$7,'New data sheet'!$F$6:$K$6,0)) -> 14506 | S23: =INDEX('New data sheet'!$F:$K,MATCH($D23&S$9,'New data sheet'!$L:$L,0),MATCH($E$7,'New data sheet'!$F$6:$K$6,0)) ->  | T23: =INDEX('New data sheet'!$F:$K,MATCH($D23&T$9,'New data sheet'!$L:$L,0),MATCH($E$7,'New data sheet'!$F$6:$K$6,0)) ->  | U23: =INDEX('New data sheet'!$F:$K,MATCH($D23&U$9,'New data sheet'!$L:$L,0),MATCH($E$7,'New data sheet'!$F$6:$K$6,0)) -> 
D24: Circuit length - underground | E24: =INDEX('New data sheet'!$F:$K,MATCH($D24&E$9,'New data sheet'!$L:$L,0),MATCH($E$7,'New data sheet'!$F$6:$K$6,0)) -> 15.8 | F24: =INDEX('New data sheet'!$F:$K,MATCH($D24&F$9,'New data sheet'!$L:$L,0),MATCH($E$7,'New data sheet'!$F$6:$K$6,0)) -> 15.8 | G24: =INDEX('New data sheet'!$F:$K,MATCH($D24&G$9,'New data sheet'!$L:$L,0),MATCH($E$7,'New data sheet'!$F$6:$K$6,0)) -> 15.8 | H24: =INDEX('New data sheet'!$F:$K,MATCH($D24&H$9,'New data sheet'!$L:$L,0),MATCH($E$7,'New data sheet'!$F$6:$K$6,0)) -> 17.1 | I24: =INDEX('New data sheet'!$F:$K,MATCH($D24&I$9,'New data sheet'!$L:$L,0),MATCH($E$7,'New data sheet'!$F$6:$K$6,0)) -> 17.1 | J24: =INDEX('New data sheet'!$F:$K,MATCH($D24&J$9,'New data sheet'!$L:$L,0),MATCH($E$7,'New data sheet'!$F$6:$K$6,0)) -> 21.4 | K24: =INDEX('New data sheet'!$F:$K,MATCH($D24&K$9,'New data sheet'!$L:$L,0),MATCH($E$7,'New data sheet'!$F$6:$K$6,0)) -> 21.4 | L24: =INDEX('New data sheet'!$F:$K,MATCH($D24&L$9,'New data sheet'!$L:$L,0),MATCH($E$7,'New data sheet'!$F$6:$K$6,0)) -> 21.5 | M24: =INDEX('New data sheet'!$F:$K,MATCH($D24&M$9,'New data sheet'!$L:$L,0),MATCH($E$7,'New data sheet'!$F$6:$K$6,0)) -> 21.5 | N24: =INDEX('New data sheet'!$F:$K,MATCH($D24&N$9,'New data sheet'!$L:$L,0),MATCH($E$7,'New data sheet'!$F$6:$K$6,0)) -> 21.5 | O24: =INDEX('New data sheet'!$F:$K,MATCH($D24&O$9,'New data sheet'!$L:$L,0),MATCH($E$7,'New data sheet'!$F$6:$K$6,0)) -> 21.5 | P24: =INDEX('New data sheet'!$F:$K,MATCH($D24&P$9,'New data sheet'!$L:$L,0),MATCH($E$7,'New data sheet'!$F$6:$K$6,0)) -> 21.5 | Q24: =INDEX('New data sheet'!$F:$K,MATCH($D24&Q$9,'New data sheet'!$L:$L,0),MATCH($E$7,'New data sheet'!$F$6:$K$6,0)) -> 21.5 | R24: =INDEX('New data sheet'!$F:$K,MATCH($D24&R$9,'New data sheet'!$L:$L,0),MATCH($E$7,'New data sheet'!$F$6:$K$6,0)) -> 20.2 | S24: =INDEX('New data sheet'!$F:$K,MATCH($D24&S$9,'New data sheet'!$L:$L,0),MATCH($E$7,'New data sheet'!$F$6:$K$6,0)) ->  | T24: =INDEX('New data sheet'!$F:$K,MATCH($D24&T$9,'New data sheet'!$L:$L,0),MATCH($E$7,'New data sheet'!$F$6:$K$6,0)) ->  | U24: =INDEX('New data sheet'!$F:$K,MATCH($D24&U$9,'New data sheet'!$L:$L,0),MATCH($E$7,'New data sheet'!$F$6:$K$6,0)) -> 
E26: 2009 | F26: 2010 | G26: 2011 | H26: 2012 | I26: 2013 | J26: 2014 | K26: 2015 | L26: 2016 | M26: 2017 | N26: 2018 | O26: 2019 | P26: 2020 | Q26: 2021 | R26: 2022
D27: augmentation expenditure | E27: =IF($E$7="Transmission total", '4. Capex by Driver'!D41, IF($E$7="Powerlink",'4. Capex by Driver'!D57, IF($E$7="Transgrid",'4. Capex by Driver'!D65, IF($E$7="AusNet (T)",'4. Capex by Driver'!D73, IF($E$7='4. Capex by Driver'!$B$82,'4. Capex by Driver'!D84, IF($E$7='4. Capex by Driver'!$B$90,'4. Capex by Driver'!D92, "#N/A")))))) -> 480.3540923 | F27: =IF($E$7="Transmission total", '4. Capex by Driver'!E41, IF($E$7="Powerlink",'4. Capex by Driver'!E57, IF($E$7="Transgrid",'4. Capex by Driver'!E65, IF($E$7="AusNet (T)",'4. Capex by Driver'!E73, IF($E$7='4. Capex by Driver'!$B$82,'4. Capex by Driver'!E84, IF($E$7='4. Capex by Driver'!$B$90,'4. Capex by Driver'!E92, "#N/A")))))) -> 231.5001888 | G27: =IF($E$7="Transmission total", '4. Capex by Driver'!F41, IF($E$7="Powerlink",'4. Capex by Driver'!F57, IF($E$7="Transgrid",'4. Capex by Driver'!F65, IF($E$7="AusNet (T)",'4. Capex by Driver'!F73, IF($E$7='4. Capex by Driver'!$B$82,'4. Capex by Driver'!F84, IF($E$7='4. Capex by Driver'!$B$90,'4. Capex by Driver'!F92, "#N/A")))))) -> 311.7876483 | H27: =IF($E$7="Transmission total", '4. Capex by Driver'!G41, IF($E$7="Powerlink",'4. Capex by Driver'!G57, IF($E$7="Transgrid",'4. Capex by Driver'!G65, IF($E$7="AusNet (T)",'4. Capex by Driver'!G73, IF($E$7='4. Capex by Driver'!$B$82,'4. Capex by Driver'!G84, IF($E$7='4. Capex by Driver'!$B$90,'4. Capex by Driver'!G92, "#N/A")))))) -> 215.7307678 | I27: =IF($E$7="Transmission total", '4. Capex by Driver'!H41, IF($E$7="Powerlink",'4. Capex by Driver'!H57, IF($E$7="Transgrid",'4. Capex by Driver'!H65, IF($E$7="AusNet (T)",'4. Capex by Driver'!H73, IF($E$7='4. Capex by Driver'!$B$82,'4. Capex by Driver'!H84, IF($E$7='4. Capex by Driver'!$B$90,'4. Capex by Driver'!H92, "#N/A")))))) -> 203.5985471 | J27: =IF($E$7="Transmission total", '4. Capex by Driver'!I41, IF($E$7="Powerlink",'4. Capex by Driver'!I57, IF($E$7="Transgrid",'4. Capex by Driver'!I65, IF($E$7="AusNet (T)",'4. Capex by Driver'!I73, IF($E$7='4. Capex by Driver'!$B$82,'4. Capex by Driver'!I84, IF($E$7='4. Capex by Driver'!$B$90,'4. Capex by Driver'!I92, "#N/A")))))) -> 280.0737276 | K27: =IF($E$7="Transmission total", '4. Capex by Driver'!J41, IF($E$7="Powerlink",'4. Capex by Driver'!J57, IF($E$7="Transgrid",'4. Capex by Driver'!J65, IF($E$7="AusNet (T)",'4. Capex by Driver'!J73, IF($E$7='4. Capex by Driver'!$B$82,'4. Capex by Driver'!J84, IF($E$7='4. Capex by Driver'!$B$90,'4. Capex by Driver'!J92, "#N/A")))))) -> 10.37674438 | L27: =IF($E$7="Transmission total", '4. Capex by Driver'!K41, IF($E$7="Powerlink",'4. Capex by Driver'!K57, IF($E$7="Transgrid",'4. Capex by Driver'!K65, IF($E$7="AusNet (T)",'4. Capex by Driver'!K73, IF($E$7='4. Capex by Driver'!$B$82,'4. Capex by Driver'!K84, IF($E$7='4. Capex by Driver'!$B$90,'4. Capex by Driver'!K92, "#N/A")))))) -> 12.39804998 | M27: =IF($E$7="Transmission total", '4. Capex by Driver'!L41, IF($E$7="Powerlink",'4. Capex by Driver'!L57, IF($E$7="Transgrid",'4. Capex by Driver'!L65, IF($E$7="AusNet (T)",'4. Capex by Driver'!L73, IF($E$7='4. Capex by Driver'!$B$82,'4. Capex by Driver'!L84, IF($E$7='4. Capex by Driver'!$B$90,'4. Capex by Driver'!L92, "#N/A")))))) -> 0 | N27: =IF($E$7="Transmission total", '4. Capex by Driver'!M41, IF($E$7="Powerlink",'4. Capex by Driver'!M57, IF($E$7="Transgrid",'4. Capex by Driver'!M65, IF($E$7="AusNet (T)",'4. Capex by Driver'!M73, IF($E$7='4. Capex by Driver'!$B$82,'4. Capex by Driver'!M84, IF($E$7='4. Capex by Driver'!$B$90,'4. Capex by Driver'!M92, "#N/A")))))) -> 2.240669686 | O27: =IF($E$7="Transmission total", '4. Capex by Driver'!N41, IF($E$7="Powerlink",'4. Capex by Driver'!N57, IF($E$7="Transgrid",'4. Capex by Driver'!N65, IF($E$7="AusNet (T)",'4. Capex by Driver'!N73, IF($E$7='4. Capex by Driver'!$B$82,'4. Capex by Driver'!N84, IF($E$7='4. Capex by Driver'!$B$90,'4. Capex by Driver'!N92, "#N/A")))))) -> 0 | P27: =IF($E$7="Transmission total", '4. Capex by Driver'!O41, IF($E$7="Powerlink",'4. Capex by Driver'!O57, IF($E$7="Transgrid",'4. Capex by Driver'!O65, IF($E$7="AusNet (T)",'4. Capex by Driver'!O73, IF($E$7='4. Capex by Driver'!$B$82,'4. Capex by Driver'!O84, IF($E$7='4. Capex by Driver'!$B$90,'4. Capex by Driver'!O92, "#N/A")))))) -> 0 | Q27: =IF($E$7="Transmission total", '4. Capex by Driver'!P41, IF($E$7="Powerlink",'4. Capex by Driver'!P57, IF($E$7="Transgrid",'4. Capex by Driver'!P65, IF($E$7="AusNet (T)",'4. Capex by Driver'!P73, IF($E$7='4. Capex by Driver'!$B$82,'4. Capex by Driver'!P84, IF($E$7='4. Capex by Driver'!$B$90,'4. Capex by Driver'!P92, "#N/A")))))) -> 0 | R27: =IF($E$7="Transmission total", '4. Capex by Driver'!Q41, IF($E$7="Powerlink",'4. Capex by Driver'!Q57, IF($E$7="Transgrid",'4. Capex by Driver'!Q65, IF($E$7="AusNet (T)",'4. Capex by Driver'!Q73, IF($E$7='4. Capex by Driver'!$B$82,'4. Capex by Driver'!Q84, IF($E$7='4. Capex by Driver'!$B$90,'4. Capex by Driver'!Q92, "#N/A")))))) -> 0
D28: overheads | E28: =IF($E$7="Transmission total", '4. Capex by Driver'!D42, IF($E$7="Powerlink",'4. Capex by Driver'!D58, IF($E$7="Transgrid",'4. Capex by Driver'!D66, IF($E$7="AusNet (T)",'4. Capex by Driver'!D74, IF($E$7='4. Capex by Driver'!$B$82,'4. Capex by Driver'!D85, IF($E$7='4. Capex by Driver'!$B$90,'4. Capex by Driver'!D93, "#N/A")))))) -> 36.31119329 | F28: =IF($E$7="Transmission total", '4. Capex by Driver'!E42, IF($E$7="Powerlink",'4. Capex by Driver'!E58, IF($E$7="Transgrid",'4. Capex by Driver'!E66, IF($E$7="AusNet (T)",'4. Capex by Driver'!E74, IF($E$7='4. Capex by Driver'!$B$82,'4. Capex by Driver'!E85, IF($E$7='4. Capex by Driver'!$B$90,'4. Capex by Driver'!E93, "#N/A")))))) -> 29.19370125 | G28: =IF($E$7="Transmission total", '4. Capex by Driver'!F42, IF($E$7="Powerlink",'4. Capex by Driver'!F58, IF($E$7="Transgrid",'4. Capex by Driver'!F66, IF($E$7="AusNet (T)",'4. Capex by Driver'!F74, IF($E$7='4. Capex by Driver'!$B$82,'4. Capex by Driver'!F85, IF($E$7='4. Capex by Driver'!$B$90,'4. Capex by Driver'!F93, "#N/A")))))) -> 26.76338117 | H28: =IF($E$7="Transmission total", '4. Capex by Driver'!G42, IF($E$7="Powerlink",'4. Capex by Driver'!G58, IF($E$7="Transgrid",'4. Capex by Driver'!G66, IF($E$7="AusNet (T)",'4. Capex by Driver'!G74, IF($E$7='4. Capex by Driver'!$B$82,'4. Capex by Driver'!G85, IF($E$7='4. Capex by Driver'!$B$90,'4. Capex by Driver'!G93, "#N/A")))))) -> 25.97445931 | I28: =IF($E$7="Transmission total", '4. Capex by Driver'!H42, IF($E$7="Powerlink",'4. Capex by Driver'!H58, IF($E$7="Transgrid",'4. Capex by Driver'!H66, IF($E$7="AusNet (T)",'4. Capex by Driver'!H74, IF($E$7='4. Capex by Driver'!$B$82,'4. Capex by Driver'!H85, IF($E$7='4. Capex by Driver'!$B$90,'4. Capex by Driver'!H93, "#N/A")))))) -> 25.40360897 | J28: =IF($E$7="Transmission total", '4. Capex by Driver'!I42, IF($E$7="Powerlink",'4. Capex by Driver'!I58, IF($E$7="Transgrid",'4. Capex by Driver'!I66, IF($E$7="AusNet (T)",'4. Capex by Driver'!I74, IF($E$7='4. Capex by Driver'!$B$82,'4. Capex by Driver'!I85, IF($E$7='4. Capex by Driver'!$B$90,'4. Capex by Driver'!I93, "#N/A")))))) -> 21.08126864 | K28: =IF($E$7="Transmission total", '4. Capex by Driver'!J42, IF($E$7="Powerlink",'4. Capex by Driver'!J58, IF($E$7="Transgrid",'4. Capex by Driver'!J66, IF($E$7="AusNet (T)",'4. Capex by Driver'!J74, IF($E$7='4. Capex by Driver'!$B$82,'4. Capex by Driver'!J85, IF($E$7='4. Capex by Driver'!$B$90,'4. Capex by Driver'!J93, "#N/A")))))) -> 13.45602029 | L28: =IF($E$7="Transmission total", '4. Capex by Driver'!K42, IF($E$7="Powerlink",'4. Capex by Driver'!K58, IF($E$7="Transgrid",'4. Capex by Driver'!K66, IF($E$7="AusNet (T)",'4. Capex by Driver'!K74, IF($E$7='4. Capex by Driver'!$B$82,'4. Capex by Driver'!K85, IF($E$7='4. Capex by Driver'!$B$90,'4. Capex by Driver'!K93, "#N/A")))))) -> 7.523196726 | M28: =IF($E$7="Transmission total", '4. Capex by Driver'!L42, IF($E$7="Powerlink",'4. Capex by Driver'!L58, IF($E$7="Transgrid",'4. Capex by Driver'!L66, IF($E$7="AusNet (T)",'4. Capex by Driver'!L74, IF($E$7='4. Capex by Driver'!$B$82,'4. Capex by Driver'!L85, IF($E$7='4. Capex by Driver'!$B$90,'4. Capex by Driver'!L93, "#N/A")))))) -> 12.4979563 | N28: =IF($E$7="Transmission total", '4. Capex by Driver'!M42, IF($E$7="Powerlink",'4. Capex by Driver'!M58, IF($E$7="Transgrid",'4. Capex by Driver'!M66, IF($E$7="AusNet (T)",'4. Capex by Driver'!M74, IF($E$7='4. Capex by Driver'!$B$82,'4. Capex by Driver'!M85, IF($E$7='4. Capex by Driver'!$B$90,'4. Capex by Driver'!M93, "#N/A")))))) -> 8.582560282 | O28: =IF($E$7="Transmission total", '4. Capex by Driver'!N42, IF($E$7="Powerlink",'4. Capex by Driver'!N58, IF($E$7="Transgrid",'4. Capex by Driver'!N66, IF($E$7="AusNet (T)",'4. Capex by Driver'!N74, IF($E$7='4. Capex by Driver'!$B$82,'4. Capex by Driver'!N85, IF($E$7='4. Capex by Driver'!$B$90,'4. Capex by Driver'!N93, "#N/A")))))) -> 12.44618205 | P28: =IF($E$7="Transmission total", '4. Capex by Driver'!O42, IF($E$7="Powerlink",'4. Capex by Driver'!O58, IF($E$7="Transgrid",'4. Capex by Driver'!O66, IF($E$7="AusNet (T)",'4. Capex by Driver'!O74, IF($E$7='4. Capex by Driver'!$B$82,'4. Capex by Driver'!O85, IF($E$7='4. Capex by Driver'!$B$90,'4. Capex by Driver'!O93, "#N/A")))))) -> 0 | Q28: =IF($E$7="Transmission total", '4. Capex by Driver'!P42, IF($E$7="Powerlink",'4. Capex by Driver'!P58, IF($E$7="Transgrid",'4. Capex by Driver'!P66, IF($E$7="AusNet (T)",'4. Capex by Driver'!P74, IF($E$7='4. Capex by Driver'!$B$82,'4. Capex by Driver'!P85, IF($E$7='4. Capex by Driver'!$B$90,'4. Capex by Driver'!P93, "#N/A")))))) -> 0 | R28: =IF($E$7="Transmission total", '4. Capex by Driver'!Q42, IF($E$7="Powerlink",'4. Capex by Driver'!Q58, IF($E$7="Transgrid",'4. Capex by Driver'!Q66, IF($E$7="AusNet (T)",'4. Capex by Driver'!Q74, IF($E$7='4. Capex by Driver'!$B$82,'4. Capex by Driver'!Q85, IF($E$7='4. Capex by Driver'!$B$90,'4. Capex by Driver'!Q93, "#N/A")))))) -> 0
D29: connections | E29: =IF($E$7="Transmission total", '4. Capex by Driver'!D43, IF($E$7="Powerlink",'4. Capex by Driver'!D59, IF($E$7="Transgrid",'4. Capex by Driver'!D67, IF($E$7="AusNet (T)",'4. Capex by Driver'!D75, IF($E$7='4. Capex by Driver'!$B$82,'4. Capex by Driver'!D86, IF($E$7='4. Capex by Driver'!$B$90,'4. Capex by Driver'!D94, "#N/A")))))) -> 18.83658017 | F29: =IF($E$7="Transmission total", '4. Capex by Driver'!E43, IF($E$7="Powerlink",'4. Capex by Driver'!E59, IF($E$7="Transgrid",'4. Capex by Driver'!E67, IF($E$7="AusNet (T)",'4. Capex by Driver'!E75, IF($E$7='4. Capex by Driver'!$B$82,'4. Capex by Driver'!E86, IF($E$7='4. Capex by Driver'!$B$90,'4. Capex by Driver'!E94, "#N/A")))))) -> 4.699046607 | G29: =IF($E$7="Transmission total", '4. Capex by Driver'!F43, IF($E$7="Powerlink",'4. Capex by Driver'!F59, IF($E$7="Transgrid",'4. Capex by Driver'!F67, IF($E$7="AusNet (T)",'4. Capex by Driver'!F75, IF($E$7='4. Capex by Driver'!$B$82,'4. Capex by Driver'!F86, IF($E$7='4. Capex by Driver'!$B$90,'4. Capex by Driver'!F94, "#N/A")))))) -> 4.829140131 | H29: =IF($E$7="Transmission total", '4. Capex by Driver'!G43, IF($E$7="Powerlink",'4. Capex by Driver'!G59, IF($E$7="Transgrid",'4. Capex by Driver'!G67, IF($E$7="AusNet (T)",'4. Capex by Driver'!G75, IF($E$7='4. Capex by Driver'!$B$82,'4. Capex by Driver'!G86, IF($E$7='4. Capex by Driver'!$B$90,'4. Capex by Driver'!G94, "#N/A")))))) -> 6.537333612 | I29: =IF($E$7="Transmission total", '4. Capex by Driver'!H43, IF($E$7="Powerlink",'4. Capex by Driver'!H59, IF($E$7="Transgrid",'4. Capex by Driver'!H67, IF($E$7="AusNet (T)",'4. Capex by Driver'!H75, IF($E$7='4. Capex by Driver'!$B$82,'4. Capex by Driver'!H86, IF($E$7='4. Capex by Driver'!$B$90,'4. Capex by Driver'!H94, "#N/A")))))) -> 3.193247614 | J29: =IF($E$7="Transmission total", '4. Capex by Driver'!I43, IF($E$7="Powerlink",'4. Capex by Driver'!I59, IF($E$7="Transgrid",'4. Capex by Driver'!I67, IF($E$7="AusNet (T)",'4. Capex by Driver'!I75, IF($E$7='4. Capex by Driver'!$B$82,'4. Capex by Driver'!I86, IF($E$7='4. Capex by Driver'!$B$90,'4. Capex by Driver'!I94, "#N/A")))))) -> 5.450234211 | K29: =IF($E$7="Transmission total", '4. Capex by Driver'!J43, IF($E$7="Powerlink",'4. Capex by Driver'!J59, IF($E$7="Transgrid",'4. Capex by Driver'!J67, IF($E$7="AusNet (T)",'4. Capex by Driver'!J75, IF($E$7='4. Capex by Driver'!$B$82,'4. Capex by Driver'!J86, IF($E$7='4. Capex by Driver'!$B$90,'4. Capex by Driver'!J94, "#N/A")))))) -> 1.485709364 | L29: =IF($E$7="Transmission total", '4. Capex by Driver'!K43, IF($E$7="Powerlink",'4. Capex by Driver'!K59, IF($E$7="Transgrid",'4. Capex by Driver'!K67, IF($E$7="AusNet (T)",'4. Capex by Driver'!K75, IF($E$7='4. Capex by Driver'!$B$82,'4. Capex by Driver'!K86, IF($E$7='4. Capex by Driver'!$B$90,'4. Capex by Driver'!K94, "#N/A")))))) -> 0 | M29: =IF($E$7="Transmission total", '4. Capex by Driver'!L43, IF($E$7="Powerlink",'4. Capex by Driver'!L59, IF($E$7="Transgrid",'4. Capex by Driver'!L67, IF($E$7="AusNet (T)",'4. Capex by Driver'!L75, IF($E$7='4. Capex by Driver'!$B$82,'4. Capex by Driver'!L86, IF($E$7='4. Capex by Driver'!$B$90,'4. Capex by Driver'!L94, "#N/A")))))) -> 0 | N29: =IF($E$7="Transmission total", '4. Capex by Driver'!M43, IF($E$7="Powerlink",'4. Capex by Driver'!M59, IF($E$7="Transgrid",'4. Capex by Driver'!M67, IF($E$7="AusNet (T)",'4. Capex by Driver'!M75, IF($E$7='4. Capex by Driver'!$B$82,'4. Capex by Driver'!M86, IF($E$7='4. Capex by Driver'!$B$90,'4. Capex by Driver'!M94, "#N/A")))))) -> 0 | O29: =IF($E$7="Transmission total", '4. Capex by Driver'!N43, IF($E$7="Powerlink",'4. Capex by Driver'!N59, IF($E$7="Transgrid",'4. Capex by Driver'!N67, IF($E$7="AusNet (T)",'4. Capex by Driver'!N75, IF($E$7='4. Capex by Driver'!$B$82,'4. Capex by Driver'!N86, IF($E$7='4. Capex by Driver'!$B$90,'4. Capex by Driver'!N94, "#N/A")))))) -> 0 | P29: =IF($E$7="Transmission total", '4. Capex by Driver'!O43, IF($E$7="Powerlink",'4. Capex by Driver'!O59, IF($E$7="Transgrid",'4. Capex by Driver'!O67, IF($E$7="AusNet (T)",'4. Capex by Driver'!O75, IF($E$7='4. Capex by Driver'!$B$82,'4. Capex by Driver'!O86, IF($E$7='4. Capex by Driver'!$B$90,'4. Capex by Driver'!O94, "#N/A")))))) -> 0 | Q29: =IF($E$7="Transmission total", '4. Capex by Driver'!P43, IF($E$7="Powerlink",'4. Capex by Driver'!P59, IF($E$7="Transgrid",'4. Capex by Driver'!P67, IF($E$7="AusNet (T)",'4. Capex by Driver'!P75, IF($E$7='4. Capex by Driver'!$B$82,'4. Capex by Driver'!P86, IF($E$7='4. Capex by Driver'!$B$90,'4. Capex by Driver'!P94, "#N/A")))))) -> 0 | R29: =IF($E$7="Transmission total", '4. Capex by Driver'!Q43, IF($E$7="Powerlink",'4. Capex by Driver'!Q59, IF($E$7="Transgrid",'4. Capex by Driver'!Q67, IF($E$7="AusNet (T)",'4. Capex by Driver'!Q75, IF($E$7='4. Capex by Driver'!$B$82,'4. Capex by Driver'!Q86, IF($E$7='4. Capex by Driver'!$B$90,'4. Capex by Driver'!Q94, "#N/A")))))) -> 0
D30: non-network | E30: =IF($E$7="Transmission total", '4. Capex by Driver'!D44, IF($E$7="Powerlink",'4. Capex by Driver'!D60, IF($E$7="Transgrid",'4. Capex by Driver'!D68, IF($E$7="AusNet (T)",'4. Capex by Driver'!D76, IF($E$7='4. Capex by Driver'!$B$82,'4. Capex by Driver'!D87, IF($E$7='4. Capex by Driver'!$B$90,'4. Capex by Driver'!D95, "#N/A")))))) -> 30.69395721 | F30: =IF($E$7="Transmission total", '4. Capex by Driver'!E44, IF($E$7="Powerlink",'4. Capex by Driver'!E60, IF($E$7="Transgrid",'4. Capex by Driver'!E68, IF($E$7="AusNet (T)",'4. Capex by Driver'!E76, IF($E$7='4. Capex by Driver'!$B$82,'4. Capex by Driver'!E87, IF($E$7='4. Capex by Driver'!$B$90,'4. Capex by Driver'!E95, "#N/A")))))) -> 39.02033894 | G30: =IF($E$7="Transmission total", '4. Capex by Driver'!F44, IF($E$7="Powerlink",'4. Capex by Driver'!F60, IF($E$7="Transgrid",'4. Capex by Driver'!F68, IF($E$7="AusNet (T)",'4. Capex by Driver'!F76, IF($E$7='4. Capex by Driver'!$B$82,'4. Capex by Driver'!F87, IF($E$7='4. Capex by Driver'!$B$90,'4. Capex by Driver'!F95, "#N/A")))))) -> 39.14360601 | H30: =IF($E$7="Transmission total", '4. Capex by Driver'!G44, IF($E$7="Powerlink",'4. Capex by Driver'!G60, IF($E$7="Transgrid",'4. Capex by Driver'!G68, IF($E$7="AusNet (T)",'4. Capex by Driver'!G76, IF($E$7='4. Capex by Driver'!$B$82,'4. Capex by Driver'!G87, IF($E$7='4. Capex by Driver'!$B$90,'4. Capex by Driver'!G95, "#N/A")))))) -> 33.19609361 | I30: =IF($E$7="Transmission total", '4. Capex by Driver'!H44, IF($E$7="Powerlink",'4. Capex by Driver'!H60, IF($E$7="Transgrid",'4. Capex by Driver'!H68, IF($E$7="AusNet (T)",'4. Capex by Driver'!H76, IF($E$7='4. Capex by Driver'!$B$82,'4. Capex by Driver'!H87, IF($E$7='4. Capex by Driver'!$B$90,'4. Capex by Driver'!H95, "#N/A")))))) -> 36.05924077 | J30: =IF($E$7="Transmission total", '4. Capex by Driver'!I44, IF($E$7="Powerlink",'4. Capex by Driver'!I60, IF($E$7="Transgrid",'4. Capex by Driver'!I68, IF($E$7="AusNet (T)",'4. Capex by Driver'!I76, IF($E$7='4. Capex by Driver'!$B$82,'4. Capex by Driver'!I87, IF($E$7='4. Capex by Driver'!$B$90,'4. Capex by Driver'!I95, "#N/A")))))) -> 14.02852815 | K30: =IF($E$7="Transmission total", '4. Capex by Driver'!J44, IF($E$7="Powerlink",'4. Capex by Driver'!J60, IF($E$7="Transgrid",'4. Capex by Driver'!J68, IF($E$7="AusNet (T)",'4. Capex by Driver'!J76, IF($E$7='4. Capex by Driver'!$B$82,'4. Capex by Driver'!J87, IF($E$7='4. Capex by Driver'!$B$90,'4. Capex by Driver'!J95, "#N/A")))))) -> 8.179897405 | L30: =IF($E$7="Transmission total", '4. Capex by Driver'!K44, IF($E$7="Powerlink",'4. Capex by Driver'!K60, IF($E$7="Transgrid",'4. Capex by Driver'!K68, IF($E$7="AusNet (T)",'4. Capex by Driver'!K76, IF($E$7='4. Capex by Driver'!$B$82,'4. Capex by Driver'!K87, IF($E$7='4. Capex by Driver'!$B$90,'4. Capex by Driver'!K95, "#N/A")))))) -> 13.70439998 | M30: =IF($E$7="Transmission total", '4. Capex by Driver'!L44, IF($E$7="Powerlink",'4. Capex by Driver'!L60, IF($E$7="Transgrid",'4. Capex by Driver'!L68, IF($E$7="AusNet (T)",'4. Capex by Driver'!L76, IF($E$7='4. Capex by Driver'!$B$82,'4. Capex by Driver'!L87, IF($E$7='4. Capex by Driver'!$B$90,'4. Capex by Driver'!L95, "#N/A")))))) -> 18.13892037 | N30: =IF($E$7="Transmission total", '4. Capex by Driver'!M44, IF($E$7="Powerlink",'4. Capex by Driver'!M60, IF($E$7="Transgrid",'4. Capex by Driver'!M68, IF($E$7="AusNet (T)",'4. Capex by Driver'!M76, IF($E$7='4. Capex by Driver'!$B$82,'4. Capex by Driver'!M87, IF($E$7='4. Capex by Driver'!$B$90,'4. Capex by Driver'!M95, "#N/A")))))) -> 35.67227535 | O30: =IF($E$7="Transmission total", '4. Capex by Driver'!N44, IF($E$7="Powerlink",'4. Capex by Driver'!N60, IF($E$7="Transgrid",'4. Capex by Driver'!N68, IF($E$7="AusNet (T)",'4. Capex by Driver'!N76, IF($E$7='4. Capex by Driver'!$B$82,'4. Capex by Driver'!N87, IF($E$7='4. Capex by Driver'!$B$90,'4. Capex by Driver'!N95, "#N/A")))))) -> 21.78278455 | P30: =IF($E$7="Transmission total", '4. Capex by Driver'!O44, IF($E$7="Powerlink",'4. Capex by Driver'!O60, IF($E$7="Transgrid",'4. Capex by Driver'!O68, IF($E$7="AusNet (T)",'4. Capex by Driver'!O76, IF($E$7='4. Capex by Driver'!$B$82,'4. Capex by Driver'!O87, IF($E$7='4. Capex by Driver'!$B$90,'4. Capex by Driver'!O95, "#N/A")))))) -> 0 | Q30: =IF($E$7="Transmission total", '4. Capex by Driver'!P44, IF($E$7="Powerlink",'4. Capex by Driver'!P60, IF($E$7="Transgrid",'4. Capex by Driver'!P68, IF($E$7="AusNet (T)",'4. Capex by Driver'!P76, IF($E$7='4. Capex by Driver'!$B$82,'4. Capex by Driver'!P87, IF($E$7='4. Capex by Driver'!$B$90,'4. Capex by Driver'!P95, "#N/A")))))) -> 0 | R30: =IF($E$7="Transmission total", '4. Capex by Driver'!Q44, IF($E$7="Powerlink",'4. Capex by Driver'!Q60, IF($E$7="Transgrid",'4. Capex by Driver'!Q68, IF($E$7="AusNet (T)",'4. Capex by Driver'!Q76, IF($E$7='4. Capex by Driver'!$B$82,'4. Capex by Driver'!Q87, IF($E$7='4. Capex by Driver'!$B$90,'4. Capex by Driver'!Q95, "#N/A")))))) -> 0
D31: replacement expenditure | E31: =IF($E$7="Transmission total", '4. Capex by Driver'!D45, IF($E$7="Powerlink",'4. Capex by Driver'!D61, IF($E$7="Transgrid",'4. Capex by Driver'!D69, IF($E$7="AusNet (T)",'4. Capex by Driver'!D77, IF($E$7='4. Capex by Driver'!$B$82,'4. Capex by Driver'!D88, IF($E$7='4. Capex by Driver'!$B$90,'4. Capex by Driver'!D96, "#N/A")))))) -> 196.5873408 | F31: =IF($E$7="Transmission total", '4. Capex by Driver'!E45, IF($E$7="Powerlink",'4. Capex by Driver'!E61, IF($E$7="Transgrid",'4. Capex by Driver'!E69, IF($E$7="AusNet (T)",'4. Capex by Driver'!E77, IF($E$7='4. Capex by Driver'!$B$82,'4. Capex by Driver'!E88, IF($E$7='4. Capex by Driver'!$B$90,'4. Capex by Driver'!E96, "#N/A")))))) -> 161.3024882 | G31: =IF($E$7="Transmission total", '4. Capex by Driver'!F45, IF($E$7="Powerlink",'4. Capex by Driver'!F61, IF($E$7="Transgrid",'4. Capex by Driver'!F69, IF($E$7="AusNet (T)",'4. Capex by Driver'!F77, IF($E$7='4. Capex by Driver'!$B$82,'4. Capex by Driver'!F88, IF($E$7='4. Capex by Driver'!$B$90,'4. Capex by Driver'!F96, "#N/A")))))) -> 83.4826551 | H31: =IF($E$7="Transmission total", '4. Capex by Driver'!G45, IF($E$7="Powerlink",'4. Capex by Driver'!G61, IF($E$7="Transgrid",'4. Capex by Driver'!G69, IF($E$7="AusNet (T)",'4. Capex by Driver'!G77, IF($E$7='4. Capex by Driver'!$B$82,'4. Capex by Driver'!G88, IF($E$7='4. Capex by Driver'!$B$90,'4. Capex by Driver'!G96, "#N/A")))))) -> 209.6157676 | I31: =IF($E$7="Transmission total", '4. Capex by Driver'!H45, IF($E$7="Powerlink",'4. Capex by Driver'!H61, IF($E$7="Transgrid",'4. Capex by Driver'!H69, IF($E$7="AusNet (T)",'4. Capex by Driver'!H77, IF($E$7='4. Capex by Driver'!$B$82,'4. Capex by Driver'!H88, IF($E$7='4. Capex by Driver'!$B$90,'4. Capex by Driver'!H96, "#N/A")))))) -> 242.1234584 | J31: =IF($E$7="Transmission total", '4. Capex by Driver'!I45, IF($E$7="Powerlink",'4. Capex by Driver'!I61, IF($E$7="Transgrid",'4. Capex by Driver'!I69, IF($E$7="AusNet (T)",'4. Capex by Driver'!I77, IF($E$7='4. Capex by Driver'!$B$82,'4. Capex by Driver'!I88, IF($E$7='4. Capex by Driver'!$B$90,'4. Capex by Driver'!I96, "#N/A")))))) -> 264.8344851 | K31: =IF($E$7="Transmission total", '4. Capex by Driver'!J45, IF($E$7="Powerlink",'4. Capex by Driver'!J61, IF($E$7="Transgrid",'4. Capex by Driver'!J69, IF($E$7="AusNet (T)",'4. Capex by Driver'!J77, IF($E$7='4. Capex by Driver'!$B$82,'4. Capex by Driver'!J88, IF($E$7='4. Capex by Driver'!$B$90,'4. Capex by Driver'!J96, "#N/A")))))) -> 154.8244504 | L31: =IF($E$7="Transmission total", '4. Capex by Driver'!K45, IF($E$7="Powerlink",'4. Capex by Driver'!K61, IF($E$7="Transgrid",'4. Capex by Driver'!K69, IF($E$7="AusNet (T)",'4. Capex by Driver'!K77, IF($E$7='4. Capex by Driver'!$B$82,'4. Capex by Driver'!K88, IF($E$7='4. Capex by Driver'!$B$90,'4. Capex by Driver'!K96, "#N/A")))))) -> 53.7948533 | M31: =IF($E$7="Transmission total", '4. Capex by Driver'!L45, IF($E$7="Powerlink",'4. Capex by Driver'!L61, IF($E$7="Transgrid",'4. Capex by Driver'!L69, IF($E$7="AusNet (T)",'4. Capex by Driver'!L77, IF($E$7='4. Capex by Driver'!$B$82,'4. Capex by Driver'!L88, IF($E$7='4. Capex by Driver'!$B$90,'4. Capex by Driver'!L96, "#N/A")))))) -> 119.9636134 | N31: =IF($E$7="Transmission total", '4. Capex by Driver'!M45, IF($E$7="Powerlink",'4. Capex by Driver'!M61, IF($E$7="Transgrid",'4. Capex by Driver'!M69, IF($E$7="AusNet (T)",'4. Capex by Driver'!M77, IF($E$7='4. Capex by Driver'!$B$82,'4. Capex by Driver'!M88, IF($E$7='4. Capex by Driver'!$B$90,'4. Capex by Driver'!M96, "#N/A")))))) -> 64.37147754 | O31: =IF($E$7="Transmission total", '4. Capex by Driver'!N45, IF($E$7="Powerlink",'4. Capex by Driver'!N61, IF($E$7="Transgrid",'4. Capex by Driver'!N69, IF($E$7="AusNet (T)",'4. Capex by Driver'!N77, IF($E$7='4. Capex by Driver'!$B$82,'4. Capex by Driver'!N88, IF($E$7='4. Capex by Driver'!$B$90,'4. Capex by Driver'!N96, "#N/A")))))) -> 128.2424437 | P31: =IF($E$7="Transmission total", '4. Capex by Driver'!O45, IF($E$7="Powerlink",'4. Capex by Driver'!O61, IF($E$7="Transgrid",'4. Capex by Driver'!O69, IF($E$7="AusNet (T)",'4. Capex by Driver'!O77, IF($E$7='4. Capex by Driver'!$B$82,'4. Capex by Driver'!O88, IF($E$7='4. Capex by Driver'!$B$90,'4. Capex by Driver'!O96, "#N/A")))))) -> 0 | Q31: =IF($E$7="Transmission total", '4. Capex by Driver'!P45, IF($E$7="Powerlink",'4. Capex by Driver'!P61, IF($E$7="Transgrid",'4. Capex by Driver'!P69, IF($E$7="AusNet (T)",'4. Capex by Driver'!P77, IF($E$7='4. Capex by Driver'!$B$82,'4. Capex by Driver'!P88, IF($E$7='4. Capex by Driver'!$B$90,'4. Capex by Driver'!P96, "#N/A")))))) -> 0 | R31: =IF($E$7="Transmission total", '4. Capex by Driver'!Q45, IF($E$7="Powerlink",'4. Capex by Driver'!Q61, IF($E$7="Transgrid",'4. Capex by Driver'!Q69, IF($E$7="AusNet (T)",'4. Capex by Driver'!Q77, IF($E$7='4. Capex by Driver'!$B$82,'4. Capex by Driver'!Q88, IF($E$7='4. Capex by Driver'!$B$90,'4. Capex by Driver'!Q96, "#N/A")))))) -> 0

Sheet Introduction
D2: Electricity Transmission Network Service Provider
C3: Operational Performance Data
B6: Introduction
C11: This workbook contains operational performance data for electricity transmission businesses in the National Energy Market (NEM). The charts and data are presented for a range of financial, service and network operational performance measures.
C12: Interpretation
C13: The data covers the regulatory years from 2006 to 2019. It is reported on an end of year basis. All transmission businesses report on a financial year basis, hence the label 2015 refers to data collected for the year ending 30 June 2015 (or 31 March 2015 for AusNet (T)). Exceptions to this are tables 6,7 and 8, which are reported on a calendar year basis, in line with service performance scheme (STPIS) reporting timeframes. All financial values have been converted to June 2019 dollars (or March 2019 dollars for AusNet (T)).
C16: Sources
C17: Data is classified as actual or forecast. Actual data is generally sourced from individual annual responses to regulatory information notices (RINs), including economic benchmarking and category analysis RINs, or historical data provided at the time of regulatory determinations. The annual responses of the transmission businesses are available on the AER website. Forecast data is generally sourced from the final regulatory determinations made by the AER for each of the businesses, updated for decisions by the Australian Competition Tribunal, and other allowed adjustments. Detailed data sources are listed in each of the worksheets.
C19: VERSION RECORD
C21: Version | D21: Publication date | F21: Data range/updates
C22: 4 | D22: June 2020 | F22: Financial years | H22: 2005-06 to 2018-19
C23: 3 | D23: Jul 2019 | F23: Financial years | H23: 2005-06 to 2017-18
C24: 2 | D24: Aug 2018 | F24: Financial years | H24: 2005-06 to 2016-17 | J24: Amended Opex data to remove Easement Tax for AusNet (T)
C25: 1 | D25: Feb 2018 | F25: Financial years | H25: 2005-06 to 2016-17

Sheet Dashboard
F1: Electricity Transmission Network Service Provider
E2: Operational Performance Data
F3: Powerlink
G6: Summary statistics
H9: 2019 value | I9: 5 year trend
G10: Actual revenue | H10: ="$"&TEXT(Calculations!R10,"#,##0")&"m" -> $676m
G11: Actual closing RAB | H11: ="$"&TEXT(Calculations!R11,"#,##0")&"m" -> $7,129m
G12: Forecast closing RAB | H12: ="$"&TEXT(Calculations!R12,"#,##0")&"m" -> $7,129m
G13: Actual annual capex | H13: ="$"&TEXT(Calculations!R13,"#,##0")&"m" -> $169m
G14: Forecast annual capex | H14: ="$"&TEXT(Calculations!R14,"#,##0")&"m" -> $171m
G15: Actual annual opex | H15: ="$"&TEXT(Calculations!R15,"#,##0")&"m" -> $201m
G16: Forecast annual opex | H16: ="$"&TEXT(Calculations!R16,"#,##0")&"m" -> $203m
G17: Loss of supply events* | H17: =TEXT(Calculations!Q17,"0")&" events" -> 1 events
G18: Average outage duration* | H18: =IF(Calculations!P18>0,TEXT(Calculations!Q18,"0")&" minutes","not available") -> 36 minutes
G19: Market impact indicator* | H19: =IF(Calculations!P19>0,TEXT(Calculations!Q19,"0")&" minutes","not available") -> 0 minutes
G20: Maximum demand | H20: =IF(Calculations!R20>0,(TEXT(Calculations!R20,"000")&"MW"),"not available") -> 8969MW
G21: Energy delivered | H21: =TEXT(Calculations!R21,"0,00")&"GWh" -> 53,765GWh
G22: Circuit length - total | H22: =TEXT(Calculations!R22,"0,00")&"km" -> 14,526km
G23: Circuit length - overhead | H23: =TEXT(Calculations!R23,"0,00")&"km" -> 14,506km
G24: Circuit length - underground | H24: =TEXT(Calculations!R24,"0,0")&"km" -> 20km
H25: * Using 2018 data because 2019 data is not yet reported
C30: Financials
C32: Annual revenue | H32: Closing RAB
C60: Expenditure
C62: Opex | H62: Capex By Driver | Q62: Capex
C90: Service Performance
C93: Reliability - outage events | H93: Reliability - outage duration | Q93: Market impact
C94: =IFERROR(Calculations!R17,"No Data for 2019") -> No Data for 2019 | H94: =IFERROR(Calculations!R18,"No Data for 2019") -> No Data for 2019 | Q94: =IF($F$3="Transmission total","No data for Transmission total - Market Impact",IFERROR(Calculations!R19,"No Data for 2019")) -> No Data for 2019
C121: Network Descriptors
C124: Energy delivered | H124: Circuit Length | Q124: Maximum demand
C125: =IF(F3="Transmission total", "No data for Transmission total - Maximum demand", "") -> 

Sheet Contents
H3: Electricity Transmission Network Service Provider
B4: Operational Performance Data
B6: Contents
C13: 1. Revenue
C14: 2. Regulated asset base - closing
C15: 3. Capital expenditure
C16: 4. Capital expenditure by driver
C17: 5. Operating expenditure
C18: 6. Reliability - outage events
C19: 7. Reliability - outage duration
C20: 8. Market impact
C21: 9. Maximum demand
C22: 10. Energy delivered
C23: 11. Circuit length
C24: 12. Return on assets

Sheet 1. Revenue
B4: Revenue
B32: Transmission businesses earn revenues for delivering prescribed transmission services. They earn some revenues directly from customers, and other revenue from sources such as inter-regional and intra-regional settlements residues or inter-regional settlements auction proceeds. The revenues shown in the chart only include the revenues budgeted (forecast) to be collected from customers and the actual revenues received from customers. Transmission businesses are regulated via a revenue cap, which limits the revenues that can be earned in any year.
B34: Actual revenue from customers
B35: $m 2019 | C35: State | D35: 2006 | E35: 2007 | F35: 2008 | G35: 2009 | H35: 2010 | I35: 2011 | J35: 2012 | K35: 2013 | L35: 2014 | M35: 2015 | N35: 2016 | O35: 2017 | P35: 2018 | Q35: 2019
B36: Powerlink | C36: QLD | D36: 524.43109 | E36: 556.8111823 | F36: 602.3278872 | G36: 627.9669953 | H36: 707.3585278 | I36: 804.4757333 | J36: 890.0368792 | K36: 879.9657962 | L36: 904.0144297 | M36: 884.1102281 | N36: 989.8715563 | O36: 1104.878974 | P36: 733.0270716 | Q36: 676.4057254
B37: Transgrid | C37: NSW | D37: 442.1475987 | E37: 428.8681556 | F37: 441.2820922 | G37: 542.3693151 | H37: 660.5205699 | I37: 746.676375 | J37: 768.8280514 | K37: 804.717354 | L37: 753.593123 | M37: 765.2518136 | N37: 750.9165505 | O37: 652.0903712 | P37: 605.5502101 | Q37: 535.9581187
B38: AEMO/AusNet (T) | C38: VIC | D38: 457.0020524 | E38: 501.4937129 | F38: 500.317008 | G38: 475.1629025 | H38: 568.537775 | I38: 562.6805256 | J38: 581.5858964 | K38: 645.2102763 | L38: 551.5639583 | M38: 599.8818535 | N38: 601.1279399 | O38: 561.5673047 | P38: 535.9376557 | Q38: 517.1008227
B39: ElectraNet | C39: SA | D39: 204.681999 | E39: 225.0386244 | F39: 231.9379345 | G39: 259.5949043 | H39: 251.1298707 | I39: 290.4963712 | J39: 335.6470412 | K39: 347.4968625 | L39: 299.2373219 | M39: 310.7451129 | N39: 298.0375797 | O39: 278.8006974 | P39: 267.5365678 | Q39: 264.2032284
B40: TasNetworks (T) | C40: TAS | D40: 161.5377689 | E40: 138.9673597 | F40: 151.8086693 | G40: 163.3380054 | H40: 192.099811 | I40: 229.0261526 | J40: 240.3683675 | K40: 237.8515483 | L40: 233.2880966 | M40: 200.3311463 | N40: 183.637845 | O40: 168.9569928 | P40: 165.5776928 | Q40: 154.1862098
B41: Total | D41: =SUM(D36:D40) -> 1789.800509 | E41: =SUM(E36:E40) -> 1851.179035 | F41: 1927.673591 | G41: 2068.432123 | H41: 2379.646554 | I41: 2633.355158 | J41: 2816.466236 | K41: 2915.241837 | L41: 2741.69693 | M41: 2760.320154 | N41: 2823.591472 | O41: 2766.29434 | P41: 2307.629198 | Q41: =SUM(Q36:Q40) -> 2147.854105
B43: Sources:
B44: Economic Benchmarking RINs, 2006-2019
B47: Budgeted revenue from customers
B48: $m 2019 | C48: State | D48: 2006 | E48: 2007 | F48: 2008 | G48: 2009 | H48: 2010 | I48: 2011 | J48: 2012 | K48: 2013 | L48: 2014 | M48: 2015 | N48: 2016 | O48: 2017 | P48: 2018 | Q48: 2019
B49: Powerlink | C49: QLD | M49: 895.9824287 | N49: 1014.798343 | O49: 1113.358619 | P49: 740.6518908 | Q49: 679.1994911
B50: Transgrid | C50: NSW | M50: 857.9983346 | N50: 845.3492945 | O50: 760.4676512 | P50: 696.7028311 | Q50: 556.3888705
B51: AEMO/AusNet (T) | C51: VIC | M51: 602.0196791 | N51: 601.2912951 | O51: 573.6171046 | P51: 540.1349963 | Q51: 518.5886258
B52: ElectraNet | C52: SA | M52: 317.3857197 | N52: 304.6031987 | O52: 285.9172423 | P52: 274.3044137 | Q52: 271.0122798
B53: TasNetworks (T) | C53: TAS | M53: 179.4626931 | N53: 162.7697037 | O53: 160.7835452 | P53: 152.3900088 | Q53: 153.5997629
B54: Total | M54: =SUM(M49:M53) -> 2852.848855 | N54: 2928.811835 | O54: 2894.144163 | P54: 2404.184141 | Q54: 2178.78903
B56: Sources:
B57: Information requests: all TNSPs, February 2020.
B59: Note: The AER has not collected budgeted revenues from customers for the years prior to 2015.

Sheet 2. RAB - Closing
B4: Regulatory Asset Base
B32: The regulatory asset base (RAB) represents the value of the network at a given point in time. The value of the network changes each year due to capital expenditures, depreciation, and disposal of assets.
B34: Actual Closing RAB
B35: $m 2019 | C35: State | D35: 2006 | E35: 2007 | F35: 2008 | G35: 2009 | H35: 2010 | I35: 2011 | J35: 2012 | K35: 2013 | L35: 2014 | M35: 2015 | N35: 2016 | O35: 2017 | P35: 2018 | Q35: 2019
B36: Powerlink | C36: QLD | D36: 4077.615594 | E36: 4967.110642 | F36: 5647.778713 | G36: 6215.607201 | H36: 6539.169345 | I36: 6807.08538 | J36: 7375.960858 | K36: 7665.005867 | L36: 7774.227145 | M36: 7676.138952 | N36: 7532.097408 | O36: 7332.907227 | P36: 7240.6761 | Q36: 7129.226181
B37: Transgrid | C37: NSW | D37: 4382.815653 | E37: 4502.606878 | F37: 4748.3165 | G37: 5232.247334 | H37: 5521.078986 | I37: 5748.045079 | J37: 5943.974484 | K37: 6283.663396 | L37: 6615.006585 | M37: 6626.158302 | N37: 6615.400442 | O37: 6520.271138 | P37: 6484.895633 | Q37: 6452.014732
B38: AusNet (T)* | C38: VIC | D38: 2597.919508 | E38: 2586.459548 | F38: 2813.888655 | G38: 2799.34031 | H38: 2801.678946 | I38: 2795.141093 | J38: 2810.228575 | K38: 2864.290654 | L38: 3138.758995 | M38: 3144.848678 | N38: 3137.040405 | O38: 3289.070146 | P38: 3304.112591 | Q38: 3294.764821
B39: ElectraNet | C39: SA | D39: 1395.606597 | E39: 1433.153393 | F39: 1665.490021 | G39: 1723.070364 | H39: 1798.638573 | I39: 2009.03941 | J39: 2141.152566 | K39: 2316.274062 | L39: 2379.007689 | M39: 2406.326933 | N39: 2475.940303 | O39: 2529.200713 | P39: 2605.832373 | Q39: 2616.227196
B40: TasNetworks (T) | C40: TAS | D40: 1000.762359 | E40: 1075.197708 | F40: 1081.130926 | G40: 1180.365325 | H40: 1288.283544 | I40: 1366.043661 | J40: 1459.450897 | K40: 1496.100583 | L40: 1535.450731 | M40: 1506.252048 | N40: 1472.834455 | O40: 1463.493416 | P40: 1455.601488 | Q40: 1454.735098
B41: Total | D41: =SUM(D36:D40) -> 13454.71971 | E41: =SUM(E36:E40) -> 14564.52817 | F41: 15956.60481 | G41: 17150.63053 | H41: 17948.84939 | I41: 18725.35462 | J41: 19730.76738 | K41: 20625.33456 | L41: 21442.45114 | M41: 21359.72491 | N41: 21233.31301 | O41: =SUM(O36:O40) -> 21134.94264 | P41: =SUM(P36:P40) -> 21091.11818 | Q41: =SUM(Q36:Q40) -> 20946.96803
B43: Sources:
B44: Actual closing RAB has been taken from roll forward models developed as part of final regulatory decisions, as made by the AER or jurisdictional regulators, and as updated by the Australian Competition Tribunal. Where a final decision for a regulatory period is not yet available, draft decisions or regulatory proposals have been used. If no RFM is available we have used the forecast RAB data from the Post Tax Revenue Models.
B48: Forecast Closing RAB
B49: $m 2019 | C49: State | D49: 2006 | E49: 2007 | F49: 2008 | G49: 2009 | H49: 2010 | I49: 2011 | J49: 2012 | K49: 2013 | L49: 2014 | M49: 2015 | N49: 2016 | O49: 2017 | P49: 2018 | Q49: 2019
B50: Powerlink | C50: QLD | D50: 4065.12391 | E50: 4000.914139 | F50: 5726.44341 | G50: 6372.003563 | H50: 6709.87327 | I50: 7093.899128 | J50: 7373.54117 | K50: 7935.332728 | L50: 8329.16903 | M50: 8501.071827 | N50: 8704.313154 | O50: 8963.750379 | P50: 7240.6761 | Q50: 7129.226181
B51: Transgrid | C51: NSW | D51: 4484.936613 | E51: 4637.3582 | F51: 4972.927049 | G51: 5210.106545 | H51: 5698.299751 | I51: 6052.531456 | J51: 6545.20494 | K51: 6959.621616 | L51: 7189.629531 | M51: 6637.388138 | N51: 6700.688214 | O51: 6673.177417 | P51: 6647.219007 | Q51: 6452.014732
B52: AusNet (T)* | C52: VIC | D52: 2708.750874 | E52: 2694.921076 | F52: 2678.672646 | G52: 2831.948655 | H52: 2835.771262 | I52: 2861.555966 | J52: 2892.184046 | K52: 2896.00182 | L52: 2944.529545 | M52: 3151.92345 | N52: 3195.422086 | O52: 3233.175523 | P52: 3304.112591 | Q52: 3294.764821
B53: ElectraNet | C53: SA | D53: 1446.467745 | E53: 1466.122192 | F53: 1437.944143 | G53: 1769.753924 | H53: 1935.778307 | I53: 2160.009539 | J53: 2311.946202 | K53: 2330.492734 | L53: 2470.386935 | M53: 2549.271453 | N53: 2651.51838 | O53: 2684.920196 | P53: 2642.941036 | Q53: 2616.227196
B54: TasNetworks (T) | C54: TAS | D54: 998.878568 | E54: 1073.645444 | F54: 1079.710149 | G54: 1075.724004 | H54: 1324.286607 | I54: 1461.554748 | J54: 1520.54877 | K54: 1579.767932 | L54: 1634.210132 | M54: 1535.344782 | N54: 1547.388077 | O54: 1543.233472 | P54: 1530.750518 | Q54: 1506.359756
B55: Total | D55: =SUM(D50:D54) -> 13704.15771 | E55: =SUM(E50:E54) -> 13872.96105 | F55: 15895.6974 | G55: 17259.53669 | H55: 18504.0092 | I55: 19629.55084 | J55: 20643.42513 | K55: 21701.21683 | L55: 22567.92517 | M55: 22374.99965 | N55: 22799.32991 | O55: =SUM(O50:O54) -> 23098.25699 | P55: =SUM(P50:P54) -> 21365.69925 | Q55: =SUM(Q50:Q54) -> 20998.59269
B57: Sources:
B58: Forecast closing RAB is sourced from post tax revenue models determined as part of final regulatory decisions, as made by the AER or jurisdictional regulators, and as adjusted by the Australian Competition Tribunal. Updates to the model are also taken into account.
B60: Notes:
B61: AusNet (T) - differences between actual and forecast closing RAB arise due to the treatment of augmentation capital works (Group 3 assets). These assets are included in Actual RAB data, but are not included in forecasts. The AER's Final decision on AusNet (T)'s RAB explains the issue and advises*:
B62: During a regulatory control period, AEMO or a distribution business may request AusNet Services to provide augmentations to the transmission network or distribution connection services. While the assets constructed due to these requests provide prescribed transmission services, the forecast capex associated with these assets sit outside of the revenue determination. This is because AusNet Services is not responsible for the planning of these capex. AusNet Services and AEMO refer to the assets that provide these services as ‘Group 3’ assets. Group 3 assets sit outside of the RAB and are governed by commercial contracts until such time as they are rolled into the RAB, usually at the next revenue reset. * AER, Final decision: AusNet Services transmission determination 2017–22, Attachment 2 – Regulatory asset base, p 2-6.

Sheet 3. Capex
B4: Capital expenditure
B32: Capital expenditure (capex) measures the new investments in the transmission networks. This includes expenditure for augmentation of the network, replacement of assets, new connections, improving network reliability and non-network investments (e.g. buildings). All data is reported on an as-incurred basis.
B34: Actual annual capex
B35: $m 2019 | C35: State | D35: 2006 | E35: 2007 | F35: 2008 | G35: 2009 | H35: 2010 | I35: 2011 | J35: 2012 | K35: 2013 | L35: 2014 | M35: 2015 | N35: 2016 | O35: 2017 | P35: 2018 | Q35: 2019
B36: Powerlink | C36: QLD | D36: 367.8080432 | E36: 329.2743953 | F36: 859.3500549 | G36: 778.7910246 | H36: 542.3347441 | I36: 502.1146848 | J36: 729.4077938 | K36: 507.091497 | L36: 348.9134532 | M36: 172.2942203 | N36: 141.1664299 | O36: 180.0710345 | P36: 153.5356785 | Q36: 169.2739498
B37: Transgrid | C37: NSW | D37: 213.6884515 | E37: 290.4696335 | F37: 415.594183 | G37: 714.3654322 | H37: 494.8963958 | I37: 429.5877809 | J37: 405.7700168 | K37: 548.7588744 | L37: 528.5642256 | M37: 272.2840381 | N37: 262.4549418 | O37: 193.0482174 | P37: 233.7397762 | Q37: 211.0976065
B38: AusNet (T) | C38: VIC | D38: 141.0548764 | E38: 144.0626702 | F38: 142.0447423 | G38: 115.0658656 | H38: 134.6599108 | I38: 130.2357356 | J38: 152.8173179 | K38: 195.1836495 | L38: 160.5651078 | M38: 165.252678 | N38: 148.6737949 | O38: 183.1132336 | P38: 137.4810992 | Q38: 145.8241556
B39: ElectraNet | C39: SA | D39: 93.74908312 | E39: 108.0006411 | F39: 217.5500419 | G39: 121.0957024 | H39: 142.4119716 | I39: 275.3053676 | J39: 200.9552889 | K39: 253.891002 | L39: 145.0830316 | M39: 122.6576779 | N39: 177.3531515 | O39: 157.5286375 | P39: 179.5232292 | Q39: 155.2554517
B40: TasNetworks (T) | C40: TAS | D40: 97.1873181 | E40: 135.3977847 | F40: 80.70957586 | G40: 84.0452425 | H40: 162.1638314 | I40: 136.9842085 | J40: 145.2677017 | K40: 96.55870876 | L40: 85.02401745 | M40: 27.29182798 | N40: 26.29805767 | O40: 53.26781897 | P40: 53.62937746 | Q40: 60.82476706
B41: Total | D41: =SUM(D36:D40) -> 913.4877722 | E41: =SUM(E36:E40) -> 1007.205125 | F41: 1715.248598 | G41: 1813.363267 | H41: 1476.466854 | I41: 1474.227777 | J41: 1634.218119 | K41: 1601.483732 | L41: 1268.149836 | M41: 759.7804423 | N41: 755.9463758 | O41: =SUM(O36:O40) -> 767.028942 | P41: =SUM(P36:P40) -> 757.9091605 | Q41: =SUM(Q36:Q40) -> 742.2759308
B43: Sources:
B44: Actual capex has been taken from roll forward models developed as part of final regulatory decisions, as made by the AER or jurisdictional regulators, and as updated by the Australian Competition Tribunal. The latest available RFM has been used, and if no RFM data is available, Category analysis RIN responses are used.
B48: Forecast annual capex
B49: $m 2019 | C49: State | D49: 2006 | E49: 2007 | F49: 2008 | G49: 2009 | H49: 2010 | I49: 2011 | J49: 2012 | K49: 2013 | L49: 2014 | M49: 2015 | N49: 2016 | O49: 2017 | P49: 2018 | Q49: 2019
B50: Powerlink | C50: QLD | D50: 276.1022522 | E50: 123.6591478 | F50: 937.041176 | G50: 854.7923609 | H50: 566.5029188 | I50: 625.4060055 | J50: 532.8982186 | K50: 770.5457149 | L50: 636.240245 | M50: 453.1182624 | N50: 503.7879566 | O50: 570.4341803 | P50: 170.5998491 | Q50: 171.2919456
B51: Transgrid | C51: NSW | D51: 259.3870511 | E51: 312.7221623 | F51: 494.0488987 | G51: 413.6793371 | H51: 666.8131402 | I51: 568.3653233 | J51: 698.8077126 | K51: 642.2544884 | L51: 482.7247075 | M51: 277.9414158 | N51: 331.6364686 | O51: 256.2128283 | P51: 239.2879836 | Q51: 221.064134
B52: AusNet (T) | C52: VIC | D52: 76.76869881 | E52: 104.0915148 | F52: 105.4142592 | G52: 149.5869745 | H52: 143.1896355 | I52: 169.4511954 | J52: 179.0065101 | K52: 157.0367323 | L52: 191.9153557 | M52: 164.3210711 | N52: 198.3681161 | O52: 197.3202742 | P52: 187.2299745 | Q52: 163.4945299
B53: ElectraNet | C53: SA | D53: 118.4272317 | E53: 103.3338162 | F53: 68.49021718 | G53: 164.9359149 | H53: 225.9879835 | I53: 288.7100072 | J53: 222.8305058 | K53: 99.10636717 | L53: 234.5944317 | M53: 169.9353516 | N53: 206.2161089 | O53: 148.0144848 | P53: 75.59549071 | Q53: 115.1224843
B54: TasNetworks (T) | C54: TAS | D54: 71.85825471 | E54: 118.603466 | F54: 56.0185319 | G54: 46.74649903 | H54: 197.1517871 | I54: 194.8963648 | J54: 116.3575402 | K54: 122.3281947 | L54: 122.0386649 | M54: 55.12558557 | N54: 70.18024112 | O54: 57.45020498 | P54: 48.48147466 | Q54: 37.02963811
B55: Total | D55: =SUM(D50:D54) -> 802.5434885 | E55: =SUM(E50:E54) -> 762.410107 | F55: 1661.013083 | G55: 1629.741086 | H55: 1799.645465 | I55: 1846.828896 | J55: 1749.900487 | K55: 1791.271497 | L55: 1667.513405 | M55: 1120.441686 | N55: 1310.188891 | O55: =SUM(O50:O54) -> 1229.431973 | P55: =SUM(P50:P54) -> 721.1947726 | Q55: =SUM(Q50:Q54) -> 708.002732
B57: Sources:
B58: Forecast capex is sourced from post tax revenue models (PTRMs) determined as part of final regulatory decisions, as made by the AER or jurisdictional regulators, and as adjusted by the Australian Competition Tribunal. Updates to the models are also taken into account.

Sheet 4. Capex by Driver
B4: Capital expenditure by driver
B37: Transmission businesses are required to report their capital expenditure (capex) annually by driver. This shows how the transmission businesses investment's were split between the various drivers.
B39: Capex by Driver
C40: Reported Capex spent annually ($m 2019) | D40: 2009 | E40: 2010 | F40: 2011 | G40: 2012 | H40: 2013 | I40: 2014 | J40: 2015 | K40: 2016 | L40: 2017 | M40: 2018 | N40: 2019
C41: augmentation expenditure* | D41: 1104.127759 | E41: 684.9122762 | F41: 764.390984 | G41: 554.0131834 | H41: 597.7724836 | I41: 567.898272 | J41: 51.12749285 | K41: 119.0463516 | L41: 26.45084444 | M41: 32.75204707 | N41: 58.78091498
C42: overheads | D42: 90.69199346 | E42: 103.5034821 | F42: 94.28929171 | G42: 99.57670444 | H42: 103.9113465 | I42: 87.41527667 | J42: 77.37249845 | K42: 71.92308064 | L42: 80.55709996 | M42: 77.56766413 | N42: 70.31111663
C43: connections | D43: 43.8907838 | E43: 64.61746865 | F43: 69.985185 | G43: 54.8335099 | H43: 36.50232529 | I43: 87.62039387 | J43: 58.16389242 | K43: 80.26626138 | L43: 41.78806429 | M43: 20.00889097 | N43: 25.29852496
C44: non-network | D44: 105.2659225 | E44: 98.13850967 | F44: 121.091806 | G44: 108.6693232 | H44: 130.6892305 | I44: 129.9606635 | J44: 78.59166916 | K44: 59.59466412 | L44: 73.68598843 | M44: 116.3610423 | N44: 90.94314501
C45: replacement expenditure | D45: 490.4850292 | E45: 465.2332002 | F45: 407.5581429 | G45: 586.1746911 | H45: 754.969555 | I45: 697.4570668 | J45: 542.3347327 | K45: 450.8359576 | L45: 504.5861052 | M45: 501.5278062 | N45: 495.3247874
B48: Notes:
B49: The Category Analysis RIN may result in some expenditures being classified into more than one driver. (For example, some connections capex may also be reported under augmentation capex). As such the total capex by driver may not reconcile with the total capex shown on 3. Capex.
B50: *Does not include Victorian augmentation expenditure
B52: Sources:
B53: Category Analysis RINs 2008-13, 2014, 2015, 2016, 2017, 2018, 2019
B55: Powerlink
C56: Reported Capex spent annually ($m 2019) | D56: 2009 | E56: 2010 | F56: 2011 | G56: 2012 | H56: 2013 | I56: 2014 | J56: 2015 | K56: 2016 | L56: 2017 | M56: 2018 | N56: 2019
C57: augmentation expenditure | D57: 480.3540923 | E57: 231.5001888 | F57: 311.7876483 | G57: 215.7307678 | H57: 203.5985471 | I57: 280.0737276 | J57: 10.37674438 | K57: 12.39804998 | L57: 0 | M57: 2.240669686 | N57: 0
C58: overheads | D58: 36.31119329 | E58: 29.19370125 | F58: 26.76338117 | G58: 25.97445931 | H58: 25.40360897 | I58: 21.08126864 | J58: 13.45602029 | K58: 7.523196726 | L58: 12.4979563 | M58: 8.582560282 | N58: 12.44618205
C59: connections | D59: 18.83658017 | E59: 4.699046607 | F59: 4.829140131 | G59: 6.537333612 | H59: 3.193247614 | I59: 5.450234211 | J59: 1.485709364 | K59: 0 | L59: 0 | M59: 0 | N59: 0
C60: non-network | D60: 30.69395721 | E60: 39.02033894 | F60: 39.14360601 | G60: 33.19609361 | H60: 36.05924077 | I60: 14.02852815 | J60: 8.179897405 | K60: 13.70439998 | L60: 18.13892037 | M60: 35.67227535 | N60: 21.78278455
C61: replacement expenditure | D61: 196.5873408 | E61: 161.3024882 | F61: 83.4826551 | G61: 209.6157676 | H61: 242.1234584 | I61: 264.8344851 | J61: 154.8244504 | K61: 53.7948533 | L61: 119.9636134 | M61: 64.37147754 | N61: 128.2424437
B63: Transgrid
C64: Reported Capex spent annually ($m 2019) | D64: 2009 | E64: 2010 | F64: 2011 | G64: 2012 | H64: 2013 | I64: 2014 | J64: 2015 | K64: 2016 | L64: 2017 | M64: 2018 | N64: 2019
C65: augmentation expenditure | D65: 539.5725486 | E65: 300.6281804 | F65: 223.6791539 | G65: 191.7116719 | H65: 297.728303 | I65: 249.1662698 | J65: 23.43164171 | K65: 56.36268289 | L65: 4.947663665 | M65: 4.549238451 | N65: 17.99296158
C66: overheads | D66: 30.32394523 | E66: 46.76475507 | F66: 33.75009511 | G66: 39.19311833 | H66: 42.86463579 | I66: 35.14742364 | J66: 35.08868652 | K66: 30.94271501 | L66: 32.25504403 | M66: 32.70654749 | N66: 25.45394907
C67: connections | D67: 0 | E67: 0 | F67: 0 | G67: 0 | H67: 0 | I67: 3.053424529 | J67: 2.618646748 | K67: 1.86936953 | L67: 0.8163851628 | M67: 0.3435534014 | N67: 0.786960726
C68: non-network | D68: 40.96415416 | E68: 26.44683481 | F68: 31.11212596 | G68: 46.01816437 | H68: 56.90451428 | I68: 75.24566397 | J68: 37.41710179 | K68: 21.96728383 | L68: 23.97011984 | M68: 30.40514591 | N68: 29.05950769
C69: replacement expenditure | D69: 101.1820901 | E69: 121.6248128 | F69: 143.1065554 | G69: 135.3505355 | H69: 152.3163771 | I69: 166.7386791 | J69: 174.3794984 | K69: 145.0382851 | L69: 125.5063489 | M69: 164.6805919 | N69: 132.4684915
B71: AusNet (T)
C72: Reported Capex spent annually ($m 2019) | D72: 2009 | E72: 2010 | F72: 2011 | G72: 2012 | H72: 2013 | I72: 2014 | J72: 2015 | K72: 2016 | L72: 2017 | M72: 2018 | N72: 2019
C73: augmentation expenditure* | D73: 0 | E73: 0 | F73: 0 | G73: 0 | H73: 0 | I73: 0 | J73: 0 | K73: 0 | L73: 0 | M73: 0 | N73: 0
C74: overheads | D74: 12.67083618 | E74: 13.56798386 | F74: 14.61970136 | G74: 15.81559639 | H74: 18.04214685 | I74: 15.74828863 | J74: 14.00106672 | K74: 18.47606076 | L74: 13.95350979 | M74: 10.09477111 | N74: 7.299340713
C75: connections | D75: 9.507211117 | E75: 28.37204665 | F75: 6.633185227 | G75: 4.297287451 | H75: 17.2364012 | I75: 62.83757281 | J75: 33.9147918 | K75: 75.9885534 | L75: 37.36595008 | M75: 19.36419538 | N75: 21.68447071
C76: non-network | D76: 13.90740642 | E76: 11.17916471 | F76: 16.48241004 | G76: 13.59289773 | H76: 18.62703581 | I76: 23.4599124 | J76: 23.12746905 | K76: 10.69173239 | L76: 8.516888652 | M76: 11.40694275 | N76: 13.34021325
C77: replacement expenditure | D77: 90.83677825 | E77: 110.4782865 | F77: 99.91843619 | G77: 126.5523625 | H77: 160.6178002 | I77: 123.0965204 | J77: 127.990029 | K77: 128.6879922 | L77: 118.874491 | M77: 113.7053046 | N77: 126.1690116
B79: Notes:
B80: *Augmentation of Vic transmission networks is carried out by AEMO, hence $0 expenditure reported by AusNet (T)
B82: ElectraNet
C83: Reported Capex spent annually ($m 2019) | D83: 2009 | E83: 2010 | F83: 2011 | G83: 2012 | H83: 2013 | I83: 2014 | J83: 2015 | K83: 2016 | L83: 2017 | M83: 2018 | N83: 2019
C84: augmentation expenditure | D84: 14.76125382 | E84: 47.10599576 | F84: 186.181666 | G84: 90.82293949 | H84: 85.25874869 | I84: 33.90308492 | J84: 17.1670079 | K84: 50.02371343 | L84: 20.21403117 | M84: 22.63599061 | N84: 37.26161263
C85: overheads | D85: 7.501693763 | E85: 9.931477547 | F85: 14.59835555 | G85: 15.14625948 | H85: 14.66116412 | I85: 12.6468924 | J85: 11.86394607 | K85: 10.38359199 | L85: 10.70772657 | M85: 14.55102313 | N85: 11.20080218
C86: connections | D86: 14.96555374 | E86: 24.08811069 | F86: 31.95379673 | G86: 16.86941764 | H86: 13.87387498 | I86: 16.15655464 | J86: 20.14220685 | K86: 2.407319468 | L86: 3.605729046 | M86: 0.3011421897 | N86: 2.827093521
C87: non-network | D87: 8.688582153 | E87: 10.14276666 | F87: 8.553192951 | G87: 8.070337463 | H87: 13.12232866 | I87: 11.49167734 | J87: 6.436367355 | K87: 7.589730722 | L87: 12.52608656 | M87: 29.03235317 | N87: 21.92100393
C88: replacement expenditure | D88: 75.37751872 | E88: 51.3473499 | F88: 34.12672457 | G88: 66.30390517 | H88: 124.5388649 | I88: 69.42712152 | J88: 67.13415386 | K88: 107.7805653 | L88: 110.4782037 | M88: 130.3596423 | N88: 82.16898259
B90: TasNetworks (T)
C91: Reported Capex spent annually ($m 2019) | D91: 2009 | E91: 2010 | F91: 2011 | G91: 2012 | H91: 2013 | I91: 2014 | J91: 2015 | K91: 2016 | L91: 2017 | M91: 2018 | N91: 2019
C92: augmentation expenditure | D92: 69.43986456 | E92: 105.6779112 | F92: 42.74251587 | G92: 55.74780425 | H92: 11.18688478 | I92: 4.755189674 | J92: 0.1520988598 | K92: 0.261905297 | L92: 1.289149602 | M92: 3.326148323 | N92: 3.526340766
C93: overheads | D93: 3.884324996 | E93: 4.045564332 | F93: 4.557758517 | G93: 3.447270924 | H93: 2.939790787 | I93: 2.791403361 | J93: 2.96277885 | K93: 4.597516167 | L93: 11.14286326 | M93: 11.63276211 | N93: 13.91084261
C94: connections | D94: 0.5814387791 | E94: 7.458264694 | F94: 26.56906291 | G94: 27.1294712 | H94: 2.198801492 | I94: 0.122607678 | J94: 0.002537656561 | K94: 0.001018975246 | L94: 0 | M94: 0 | N94: 0
C95: non-network | D95: 11.01182257 | E95: 11.34940454 | F95: 25.80047101 | G95: 7.791830033 | H95: 5.976111002 | I95: 5.734881642 | J95: 3.43083356 | K95: 5.64151719 | L95: 10.53397302 | M95: 9.844325109 | N95: 4.839635589
C96: replacement expenditure | D96: 26.50130141 | E96: 20.48026276 | F96: 46.92377158 | G96: 48.3521203 | H96: 75.37305444 | I96: 73.36026068 | J96: 18.00660104 | K96: 15.53426171 | L96: 29.76344824 | M96: 28.41078998 | N96: 26.27585805

Sheet 5. Opex
B4: Operating expenditure
R29: .
B32: Operating expenditure (opex) includes network operation, maintenance and other non-capital costs incurred by the transmission businesses. Easement taxes applicable to AusNet (T) have been removed.
B34: Actual annual opex
B35: $m 2019 | C35: State | D35: 2006 | E35: 2007 | F35: 2008 | G35: 2009 | H35: 2010 | I35: 2011 | J35: 2012 | K35: 2013 | L35: 2014 | M35: 2015 | N35: 2016 | O35: 2017 | P35: 2018 | Q35: 2019
B36: Powerlink | C36: QLD | D36: 163.4279308 | E36: 171.8219661 | F36: 186.8203262 | G36: 179.1139079 | H36: 185.5684452 | I36: 178.9362036 | J36: 185.4661861 | K36: 189.6792582 | L36: 199.7151405 | M36: 228.2278419 | N36: 232.0794041 | O36: 237.1758448 | P36: 192.7756964 | Q36: 201.1375615
B37: Transgrid | C37: NSW | D37: 166.3045919 | E37: 165.0832559 | F37: 155.36892 | G37: 155.895918 | H37: 175.1921671 | I37: 163.4188936 | J37: 176.1048036 | K37: 162.3005951 | L37: 194.0051113 | M37: 181.6043467 | N37: 179.9494229 | O37: 178.0161441 | P37: 157.7811979 | Q37: 155.8195226
B38: AusNet (T) | C38: VIC | D38: 85.49174936 | E38: 83.05200449 | F38: 75.92683516 | G38: 97.85307831 | H38: 98.13202975 | I38: 89.90469968 | J38: 84.64755567 | K38: 86.30047889 | L38: 91.52263312 | M38: 91.32918209 | N38: 94.64622821 | O38: 91.51425261 | P38: 84.10610753 | Q38: 87.72513716
B39: ElectraNet | C39: SA | D39: 66.62940367 | E39: 70.89826343 | F39: 64.09237275 | G39: 68.79816221 | H39: 70.31976645 | I39: 76.25785167 | J39: 83.92817579 | K39: 79.91735663 | L39: 81.81210056 | M39: 85.99188318 | N39: 90.73828487 | O39: 93.95582769 | P39: 95.68539826 | Q39: 94.17144411
B40: TasNetworks (T) | C40: TAS | D40: 48.79909265 | E40: 50.50351853 | F40: 60.13602135 | G40: 58.57416898 | H40: 58.43755619 | I40: 55.22528768 | J40: 54.32509602 | K40: 51.02919391 | L40: 50.36635047 | M40: 37.46514618 | N40: 39.91347242 | O40: 33.4871499 | P40: 29.77201729 | Q40: 31.39166034
B41: Total | D41: =SUM(D36:D40) -> 530.6527684 | E41: =SUM(E36:E40) -> 541.3590084 | F41: 542.3444755 | G41: 560.2352354 | H41: 587.6499647 | I41: 563.7429362 | J41: 584.4718173 | K41: 569.2268828 | L41: 617.421336 | M41: 624.6184001 | N41: 637.3268125 | O41: =SUM(O36:O40) -> 634.149219 | P41: =SUM(P36:P40) -> 560.1204174 | Q41: =SUM(Q36:Q40) -> 570.2453257
B43: Sources:
B44: Economic Benchmarking RIN responses, 2006-13, 2014, 2015, 2016, 2017, 2018, 2019
B47: Forecast annual opex
B48: $m 2019 | C48: State | D48: 2006 | E48: 2007 | F48: 2008 | G48: 2009 | H48: 2010 | I48: 2011 | J48: 2012 | K48: 2013 | L48: 2014 | M48: 2015 | N48: 2016 | O48: 2017 | P48: 2018 | Q48: 2019
B49: Powerlink | C49: QLD | D49: 124.8281784 | E49: 124.8330254 | F49: 185.1979042 | G49: 186.0192818 | H49: 199.9000098 | I49: 191.1147709 | J49: 196.8394764 | K49: 203.3318975 | L49: 211.065547 | M49: 216.437169 | N49: 224.5416114 | O49: 231.0505953 | P49: 204.2332943 | Q49: 203.3435447
B50: Transgrid | C50: NSW | D50: 166.7019934 | E50: 166.1725717 | F50: 165.7461727 | G50: 165.4857545 | H50: 196.296592 | I50: 189.4350527 | J50: 194.2665479 | K50: 205.2750205 | L50: 207.347877 | M50: 185.2252333 | N50: 183.9694508 | O50: 188.8928419 | P50: 181.7983001 | Q50: 178.6913806
B51: AusNet (T) | C51: VIC | D51: 106.0807557 | E51: 106.0807557 | F51: 106.0807557 | G51: 105.2987187 | H51: 104.4706034 | I51: 104.4433891 | J51: 103.1638977 | K51: 102.6071942 | L51: 101.2161939 | M51: 91.90894536 | N51: 94.25728333 | O51: 95.04158821 | P51: 95.35689945 | Q51: 95.86326783
B52: ElectraNet | C52: SA | D52: 71.14134925 | E52: 71.14134925 | F52: 71.14134925 | G52: 70.88969147 | H52: 73.11186147 | I52: 75.6411648 | J52: 79.23916914 | K52: 82.24869333 | L52: 89.31066973 | M52: 92.70306197 | N52: 94.38725549 | O52: 99.46388359 | P52: 99.85236406 | Q52: 91.98829149
B53: TasNetworks (T) | C53: TAS | D53: 44.99801222 | E53: 43.32680115 | F53: 39.68121814 | G53: 39.55617603 | H53: 61.59868385 | I53: 62.46319057 | J53: 61.99390332 | K53: 64.92102267 | L53: 64.52945397 | M53: 47.91241794 | N53: 47.25847058 | O53: 47.51338239 | P53: 47.76069206 | Q53: 47.2322877
B54: Total | D54: =SUM(D49:D53) -> 513.7502889 | E54: =SUM(E49:E53) -> 511.5545032 | F54: 567.8474 | G54: 567.2496225 | H54: 635.3777505 | I54: 623.0975681 | J54: 635.5029944 | K54: 658.3838283 | L54: 673.4697417 | M54: 634.1868276 | N54: 644.4140716 | O54: =SUM(O49:O53) -> 661.9622914 | P54: =SUM(P49:P53) -> 629.0015499 | Q54: =SUM(Q49:Q53) -> 617.1187722
B56: Sources:
B57: Forecast opex is sourced from post tax revenue models (PTRMs) determined as part of final regulatory decisions, as made by the AER or jurisdictional regulators, and as adjusted by the Australian Competition Tribunal. Updates to the models are also taken into account. The forecast opex excludes efficiency carryovers, capex efficiencies items and easement tax.

Sheet 6. Reliability -outage events
B4: Network Reliability - Outage events
B29: Reliability is an important component of network performance. Network performance measures form part of the service target performance incentive scheme (STPIS) relevant to the transmission businesses. Loss of supply events measure the number of times energy is not available for set periods of times to transmission network customers. These thresholds vary for each business between 0.05 and 1.0 system minutes, as outlined in published AER STPIS decisions.
B35: Loss of supply events
C36: State | D36: 2006 | E36: 2007 | F36: 2008 | G36: 2009 | H36: 2010 | I36: 2011 | J36: 2012 | K36: 2013 | L36: 2014 | M36: 2015 | N36: 2016 | O36: 2017 | P36: 2018
B37: Powerlink | C37: QLD | D37: 2 | E37: 2 | F37: 2 | G37: 2 | H37: 0 | I37: 4 | J37: 1 | K37: 0 | L37: 3 | M37: 1 | N37: 0 | O37: 3 | P37: 1
B38: TransGrid | C38: NSW | D38: 2 | E38: 5 | F38: 2 | G38: 3 | H38: 3 | I38: 3 | J38: 3 | K38: 3 | L38: 4 | M38: 4 | N38: 2 | O38: 1 | P38: 1
B39: AusNet (T) | C39: VIC | D39: 5 | E39: 2 | F39: 1 | G39: 6 | H39: 1 | I39: 0 | J39: 2 | K39: 5 | L39: 1 | M39: 2 | N39: 3 | O39: 0 | P39: 0
B40: ElectraNet | C40: SA | D40: 4 | E40: 1 | F40: 4 | G40: 4 | H40: 12 | I40: 7 | J40: 7 | K40: 5 | L40: 4 | M40: 1 | N40: 5 | O40: 4 | P40: 3
B41: TasNetworks (T) | C41: TAS | D41: 16 | E41: 10 | F41: 6 | G41: 8 | H41: 9 | I41: 11 | J41: 10 | K41: 10 | L41: 4 | M41: 3 | N41: 1 | O41: 4 | P41: 2
B42: Total loss of supply events | D42: 29 | E42: 20 | F42: 15 | G42: 23 | H42: 25 | I42: 25 | J42: 23 | K42: 23 | L42: 16 | M42: 11 | N42: 11 | O42: 12 | P42: 7
B44: Sources:
B45: Economic Benchmarking RIN responses, 2006-13, 2014, 2015, 2016, 2017, 2018, 2019

Sheet 7. Reliability -outage duration
B4: Network Reliability - Outage Duration
B29: Reliability is an important component of network performance. Network performance measures form part of the service target performance incentive scheme (STPIS) relevant to the transmission businesses. Average outage duration shows the average length of time of unplanned outages on the transmission network that resulted in a loss of supply event. This includes emergency and extreme events and outages with less than 24 hours notice to affected customers. Outages caused by third party systems, at the direction of emergency services/AEMO, planned outages or transient interruptions of less than a minute are not included in this data. Average outage duration is calculated as the total duration of outages divided by the number of events for each network.
B37: Average outage duration
C38: State | D38: 2006 | E38: 2007 | F38: 2008 | G38: 2009 | H38: 2010 | I38: 2011 | J38: 2012 | K38: 2013 | L38: 2014 | M38: 2015 | N38: 2016 | O38: 2017 | P38: 2018
B39: Powerlink | C39: QLD | D39: 39.03476969 | E39: 1249.943388 | F39: 35.28963807 | G39: 62.27619752 | H39: 16.62000159 | I39: 86.76942158 | J39: 26.08666667 | K39: 5.621428571 | L39: 115.971 | M39: 236.2286666 | N39: 30.06 | O39: 27.45 | P39: 36.23818182
B40: TransGrid | C40: NSW | D40: 64.84 | E40: 125.4 | F40: 34.28 | G40: 84.96 | H40: 225.83 | I40: 137.11 | J40: 94.23 | K40: 180.32 | L40: 71.138 | M40: 63.545 | N40: 169.1775079 | O40: 35.64 | P40: 58.20000015
B41: AusNet (T) | C41: VIC | D41: 61.9 | E41: 27.6 | F41: 71.5 | G41: 103.1 | H41: 92.5 | I41: 4 | J41: 230 | K41: 19.9 | L41: 24 | M41: 97.5 | N41: 39.83333333 | O41: 19 | P41: 24.5
B42: ElectraNet | C42: SA | D42: 88.46 | E42: 269.94 | F42: 200.2 | G42: 161.27 | H42: 126.85 | I42: 242.28 | J42: 124.76 | K42: 154.17 | L42: 130.71 | M42: 147 | N42: 250.57 | O42: 97 | P42: 463
B43: TasNetworks (T) | C43: TAS | D43: 53.84615 | E43: 142.7619 | F43: 112.9 | G43: 67.15789 | H43: 127.7692 | I43: 90.86667 | J43: 110.8846 | K43: 160.9412 | L43: 201 | M43: 74 | N43: 15 | O43: 410 | P43: 46
B45: Sources:
B46: Economic Benchmarking RIN responses, 2006-13, 2014, 2015, 2016, 2017, 2018, 2019

Sheet 8. Market impact
B4: Quality of Services - Market impact
B30: Market impact measures the relative disruption of outages on customers. The relative disruption is determined by estimating the impact on energy price in the National Electricity Market - if an outage increases the energy price by more than $10/MWh it is counted in the market impact measure. The chart shows the percentage of dispatch intervals where a transmission outage impacted on the energy price. The data excludes outages caused by force majeure events, resulting from third party systems, required to maintain personal safety or security, and other specific exclusions.
B32: Market impact indicator
C33: State | D33: 2006 | E33: 2007 | F33: 2008 | G33: 2009 | H33: 2010 | I33: 2011 | J33: 2012 | K33: 2013 | L33: 2014 | M33: 2015 | N33: 2016 | O33: 2017 | P33: 2018
B34: Powerlink | C34: QLD | D34: 0.03737633181 | E34: 0.02527587519 | F34: 0.01248097412 | G34: 0.009874429224 | H34: 0.01483066971 | I34: 0.003177321157 | J34: 0.002235540335 | K34: 0.0009227549467 | L34: 0.03749048706 | M34: 0.0006278538813 | N34: 0.000399543379 | O34: 0.0006944444444 | P34: 0.004242770167
B35: TransGrid | C35: NSW | D35: 0.0258847032 | E35: 0.03258181126 | F35: 0.02813926941 | G35: 0.02398211568 | H35: 0.007420091324 | I35: 0.008295281583 | J35: 0.007011035008 | K35: 0.005641171994 | L35: 0.007129946728 | M35: 0.01264269406 | N35: 0.02907153729 | O35: 0.06477834855 | P35: 0.04696537291
B36: AusNet (T) | C36: VIC | D36: 0.01152968037 | E36: 0.02546613394 | F36: 0.03142123288 | G36: 0.01442161339 | H36: 0.02091894977 | I36: 0.03160197869 | J36: 0.02480974125 | K36: 0.01281392694 | L36: 0.008090753425 | M36: 0.01806031202 | N36: 0.1030060883 | O36: 0.06159627093 | P36: 0.003025114155
B37: ElectraNet | C37: SA | D37: 0.2700247336 | E37: 0.1040239726 | F37: 0.05277777778 | G37: 0.03537861492 | H37: 0.02148972603 | I37: 0.01685692542 | J37: 0.05065639269 | K37: 0.02784436834 | L37: 0.002187975647 | M37: 0.172564688 | N37: 0.1396689498 | O37: 0.02214611872 | P37: 0.06868340944
B38: TasNetworks | C38: TAS | D38: 0.002949010654 | E38: 0.05666856925 | F38: 0.003196347032 | G38: 0.009912480974 | H38: 0.03777587519 | I38: 0.006934931507 | J38: 0.01337519026 | K38: 0.01699961948 | L38: 0.01170091324 | M38: 0.002349695586 | N38: 0.02921423135 | O38: 0.02570395738 | P38: 0.04052511416
B40: Sources:
B41: Economic Benchmarking RIN responses, 2006-13, 2014, 2015, 2016, 2017, 2018, 2019

Sheet 9. Maximum demand
B4: Maximum demand
B27: Maximum demand is reported as the coincident maximum demand on each transmission network. That is, the overall demand at the point in time when demand on the network was at its highest. Maximum demand information can be used to inform expenditure decisions, and is one of the indicators of demand that the AER uses to assess expenditure proposals.
B30: Maximum demand (MW)
C31: State | D31: 2006 | E31: 2007 | F31: 2008 | G31: 2009 | H31: 2010 | I31: 2011 | J31: 2012 | K31: 2013 | L31: 2014 | M31: 2015 | N31: 2016 | O31: 2017 | P31: 2018 | Q31: 2019
B32: Powerlink | C32: QLD | D32: 7336.8405 | E32: 7758.26744 | F32: 7281.0681 | G32: 7848.614416 | H32: 8002.824568 | I32: 7797.450764 | J32: 7740.007068 | K32: 7681.438938 | L32: 7637.8836 | M32: 8105.0588 | N32: 8272.121872 | O32: 8547.985832 | P32: 8788.580608 | Q32: 8968.972492
B33: TransGrid | C33: NSW | D33: 12600 | E33: 12400 | F33: 13200 | G33: 13700 | H33: 13200 | I33: 13700 | J33: 11900 | K33: 12700 | L33: 12100 | M33: 10900 | N33: 11900 | O33: 13200 | P33: 12200 | Q33: 13000
B34: AEMO | C34: VIC | D34: 6717.51 | E34: 7719 | F34: 8721.38 | G34: 9260.43 | H34: 8974.76 | I34: 8812.86 | J34: 8071.43 | K34: 8410.82 | L34: 9137.4 | M34: 7714.953 | N34: 8780.009717 | O34: 7979.837 | P34: 8393.988 | Q34: 8683.903
B35: ElectraNet | C35: SA | D35: 2716.662362 | E35: 2707.049284 | F35: 2939.80442 | G35: 3128.41975 | H35: 3055.21236 | I35: 3169.099066 | J35: 2807.677388 | K35: 2913.555964 | L35: 3115.138214 | M35: 2668.456524 | N35: 2804.476644 | O35: 2955.01515 | P35: 2812.003652 | Q35: 3192.898416
B36: TasNetworks (T) | C36: TAS | D36: 1949.873 | E36: 2329.506 | F36: 2245.082 | G36: 2154.23 | H36: 2267.071 | I36: 2238.723 | J36: 2264.047 | K36: 2184.59 | L36: 2132 | M36: 2143.157178 | N36: 2218.9 | O36: 1963.69113 | P36: 2184.504756 | Q36: 2147.102824
B38: Notes:
B39: AEMO 2007 - this data is an average of the reported amounts in 2006 and 2008.
B41: Sources:
B42: Economic benchmarking RIN responses, 2006-13, 2014, 2015, 2016, 2017, 2018, 2019; AER data request.

Sheet 10. Energy delivered
B4: Energy delivered
B27: Energy delivered is a measure of energy transported through the transmission networks in each year. The chart shows energy delivered to distribution networks and directly connected end users but excludes energy delivered to other transmission networks.
B29: Energy delivered - total (GWh)
C30: State | D30: 2006 | E30: 2007 | F30: 2008 | G30: 2009 | H30: 2010 | I30: 2011 | J30: 2012 | K30: 2013 | L30: 2014 | M30: 2015 | N30: 2016 | O30: 2017 | P30: 2018 | Q30: 2019
B31: Powerlink | C31: QLD | D31: 51045.96344 | E31: 51964.46568 | F31: 51187.3276 | G31: 52191.94826 | H31: 52848.52063 | I31: 51917.07119 | J31: 50878.57698 | K31: 49333.93867 | L31: 47613.58142 | M31: 53087.56343 | N31: 52872.38758 | O31: 54253.30002 | P31: 54849.85804 | Q31: 53765.29422
B32: TransGrid | C32: NSW | D32: 81538.36663 | E32: 83028.25736 | F32: 82531.57103 | G32: 81126.23803 | H32: 80626.11948 | I32: 79831.33442 | J32: 76646.15064 | K32: 71147.66818 | L32: 67800 | M32: 74400 | N32: 72200 | O32: 75000 | P32: 75700 | Q32: 74400
B33: AEMO | C33: VIC | D33: 45186.29968 | E33: 45956.43707 | F33: 45046.71803 | G33: 47419.17905 | H33: 48976.63624 | I33: 48047.97099 | J33: 47529.36126 | K33: 49056.42848 | L33: 48503.77156 | M33: 47967.07702 | N33: 47805.24582 | O33: 46829.30162 | P33: 42163.48841 | Q33: 41479.99435
B34: ElectraNet | C34: SA | D34: 15241.18699 | E34: 14809.02241 | F34: 14506.4318 | G34: 14847.61097 | H34: 15008.3794 | I34: 15262.88573 | J34: 15068.93276 | K34: 15061.13682 | L34: 14707.39394 | M34: 14485.73363 | N34: 15043.14893 | O34: 15106.16124 | P34: 14127.75758 | Q34: 13786.71469
B35: TasNetworks (T) | C35: TAS | D35: 10530.1088 | E35: 12828.493 | F35: 13500.337 | G35: 13412.711 | H35: 13030.212 | I35: 13108.443 | J35: 12589.843 | K35: 12866.188 | L35: 13359.9638 | M35: 13109.62408 | N35: 11654.5739 | O35: 12426.66332 | P35: 12434.32612 | Q35: 12884.56399
B38: Energy delivered (GWh) - excluding energy delivered to other transmission networks
D39: 2006 | E39: 2007 | F39: 2008 | G39: 2009 | H39: 2010 | I39: 2011 | J39: 2012 | K39: 2013 | L39: 2014 | M39: 2015 | N39: 2016 | O39: 2017 | P39: 2018 | Q39: 2019
B40: Transmission total | D40: 182631.4989 | E40: 186176.6668 | F40: 187629.6835 | G40: 187179.7504 | H40: 185093.7098 | I40: 181765.9955 | J40: 179217.0829 | K40: 174799.61 | L40: 170562.8549 | M40: 173326.2486 | N40: 177091.9191 | O40: 177372.3798 | P40: 178090.8344 | Q40: 177692.7752
B42: Sources:
B43: Economic Benchmarking RIN responses, 2006-13, 2014, 2015, 2016, 2017, 2018, 2019

Sheet 11. Circuit length
B4: Circuit length
B27: The circuit length data is measured at the end of each regulatory year. It includes both overhead lines and underground cables. Circuit length is always greater than or equal to route length, as a double circuit line that traverses 10 kms is counted as 20 km of circuit length.
B29: Circuit length
C30: State | D30: 2006 | E30: 2007 | F30: 2008 | G30: 2009 | H30: 2010 | I30: 2011 | J30: 2012 | K30: 2013 | L30: 2014 | M30: 2015 | N30: 2016 | O30: 2017 | P30: 2018 | Q30: 2019
B31: =B40 -> Powerlink | C31: QLD | D31: 11700.8 | E31: 11892.8 | F31: 12428.8 | G31: 12865.1 | H31: 13321.1 | I31: 13738.4 | J31: 13702.4 | K31: 14313.5 | L31: 14772.5 | M31: 14754.5 | N31: 14755.5 | O31: 14532.5 | P31: 14527.5 | Q31: 14526.2
B32: TransGrid | C32: NSW | D32: 12517.231 | E32: 12526.494 | F32: 12523.514 | G32: 12523.349 | H32: 12682.459 | I32: 12681.863 | J32: 12697.207 | K32: 12893.617 | L32: 12929.666 | M32: 13024.7647 | N32: 13039.195 | O32: 13078.1134 | P32: 13089.4947 | Q32: 13052.37522
B33: AusNet (T) | C33: VIC | D33: 6573 | E33: 6573 | F33: 6573 | G33: 6573 | H33: 6573 | I33: 6573 | J33: 6573 | K33: 6573 | L33: 6573 | M33: 6573.2 | N33: 6558.844757 | O33: 6559.972081 | P33: 6623.72 | Q33: 6627.77
B34: ElectraNet | C34: SA | D34: 5600.539 | E34: 5518.669 | F34: 5518.669 | G34: 5503.669 | H34: 5501.669 | I34: 5504.669 | J34: 5526.069 | K34: 5527.349 | L34: 5529.403054 | M34: 5521.349 | N34: 5524.349 | O34: 5519.569 | P34: 5522.169 | Q34: 5512.669
B35: TasNetworks (T) | C35: TAS | D35: 3581.3 | E35: 3622.3 | F35: 3622.3 | G35: 3520.3 | H35: 3481.3 | I35: 3493.3 | J35: 3493.3 | K35: 3503.19 | L35: 3503.8 | M35: 3563.7 | N35: 3563.7 | O35: 3563.7 | P35: 3545.2 | Q35: 3545.2
B36: Total | D36: =SUM(D31:D35) -> 39972.87 | E36: =SUM(E31:E35) -> 40133.263 | F36: 40666.283 | G36: 40985.418 | H36: 41559.528 | I36: 41991.232 | J36: 41991.976 | K36: 42810.656 | L36: 43308.36905 | M36: 43437.5137 | N36: 43441.58876 | O36: =SUM(O31:O35) -> 43253.85448 | P36: =SUM(P31:P35) -> 43308.0837 | Q36: =SUM(Q31:Q35) -> 43264.21422
B38: Circuit length - overhead
C39: State | D39: 2006 | E39: 2007 | F39: 2008 | G39: 2009 | H39: 2010 | I39: 2011 | J39: 2012 | K39: 2013 | L39: 2014 | M39: 2015 | N39: 2016 | O39: 2017 | P39: 2018 | Q39: 2019
B40: Powerlink | C40: QLD | D40: 11685 | E40: 11877 | F40: 12413 | G40: 12848 | H40: 13304 | I40: 13717 | J40: 13681 | K40: 14292 | L40: 14751 | M40: 14733 | N40: 14734 | O40: 14511 | P40: 14506 | Q40: 14506
B41: TransGrid | C41: NSW | D41: 12469.323 | E41: 12478.586 | F41: 12475.606 | G41: 12475.441 | H41: 12634.551 | I41: 12633.955 | J41: 12649.299 | K41: 12845.709 | L41: 12878.229 | M41: 12942.5407 | N41: 12956.955 | O41: 12996.5324 | P41: 13007.8547 | Q41: 12966.96722
B42: AusNet (T) | C42: VIC | D42: 6562 | E42: 6562 | F42: 6562 | G42: 6562 | H42: 6562 | I42: 6562 | J42: 6562 | K42: 6562 | L42: 6562 | M42: 6562 | N42: 6547.644757 | O42: 6551.429711 | P42: 6615.18 | Q42: 6619.23
B43: ElectraNet | C43: SA | D43: 5591.75 | E43: 5509.88 | F43: 5509.88 | G43: 5494.88 | H43: 5492.88 | I43: 5495.88 | J43: 5498.88 | K43: 5500.16 | L43: 5502.214054 | M43: 5494.16 | N43: 5497.16 | O43: 5492.37 | P43: 5494.97 | Q43: 5485.47
B44: TasNetworks (T) | C44: TAS | D44: 3568 | E44: 3609 | F44: 3609 | G44: 3507 | H44: 3468 | I44: 3480 | J44: 3480 | K44: 3480 | L44: 3480 | M44: 3539.9 | N44: 3539.9 | O44: 3539.9 | P44: 3521.4 | Q44: 3521.4
B45: Total | D45: =SUM(D40:D44) -> 39876.073 | E45: 40036.466 | F45: 40569.486 | G45: 40887.321 | H45: 41461.431 | I45: 41888.835 | J45: 41871.179 | K45: 42679.869 | L45: 43173.44305 | M45: 43271.6007 | N45: 43275.65976 | O45: =SUM(O40:O44) -> 43091.23211 | P45: =SUM(P40:P44) -> 43145.4047 | Q45: =SUM(Q40:Q44) -> 43099.06722
B47: Circuit length - underground
C48: State | D48: 2006 | E48: 2007 | F48: 2008 | G48: 2009 | H48: 2010 | I48: 2011 | J48: 2012 | K48: 2013 | L48: 2014 | M48: 2015 | N48: 2016 | O48: 2017 | P48: 2018 | Q48: 2019
B49: =B40 -> Powerlink | C49: QLD | D49: 15.8 | E49: 15.8 | F49: 15.8 | G49: 17.1 | H49: 17.1 | I49: 21.4 | J49: 21.4 | K49: 21.5 | L49: 21.5 | M49: 21.5 | N49: 21.5 | O49: 21.5 | P49: 21.5 | Q49: 20.2
B50: TransGrid | C50: NSW | D50: 47.908 | E50: 47.908 | F50: 47.908 | G50: 47.908 | H50: 47.908 | I50: 47.908 | J50: 47.908 | K50: 47.908 | L50: 51.437 | M50: 82.224 | N50: 82.24 | O50: 81.581 | P50: 81.64 | Q50: 85.408
B51: AusNet (T) | C51: VIC | D51: 11 | E51: 11 | F51: 11 | G51: 11 | H51: 11 | I51: 11 | J51: 11 | K51: 11 | L51: 11 | M51: 11.2 | N51: 11.2 | O51: 8.542370333 | P51: 8.54 | Q51: 8.54
B52: ElectraNet | C52: SA | D52: 8.789 | E52: 8.789 | F52: 8.789 | G52: 8.789 | H52: 8.789 | I52: 8.789 | J52: 27.189 | K52: 27.189 | L52: 27.189 | M52: 27.189 | N52: 27.189 | O52: 27.199 | P52: 27.199 | Q52: 27.199
B53: TasNetworks (T) | C53: TAS | D53: 13.3 | E53: 13.3 | F53: 13.3 | G53: 13.3 | H53: 13.3 | I53: 13.3 | J53: 13.3 | K53: 23.19 | L53: 23.8 | M53: 23.8 | N53: 23.8 | O53: 23.8 | P53: 23.8 | Q53: 23.8
B54: Total | D54: =SUM(D49:D53) -> 96.797 | E54: 96.797 | F54: 96.797 | G54: 98.097 | H54: 98.097 | I54: 102.397 | J54: 120.797 | K54: 130.787 | L54: 134.926 | M54: 165.913 | N54: 165.929 | O54: =SUM(O49:O53) -> 162.6223703 | P54: =SUM(P49:P53) -> 162.679 | Q54: =SUM(Q49:Q53) -> 165.147
B56: Sources:
B57: Economic benchmarking RIN responses, 2006-13, 2014, 2015, 2016, 2017, 2018, 2019

Sheet 12. Return on assets
B4: Return on assets
B6: This page has been removed. We will report Return on Assets alongside our other profitability measures as part of our 2020 network performance report.
B8: For information on Return on Assets go to the | E8: Profitability measures for electricity and gas network businesses | L8: webpage
B9: at www.aer.gov.au.
